DepartmentFamily,Entity,Date,ExpenseType,ExpenseArea,Supplier,TransactionNumber,Amount,VATRegistrationNo
BIS,The Insolvency Service,21/06/2016,Accommodation,ESTATES,ACENES HOUSE LTD                                            ,BA0000296875,"10,500.00",182696958
BIS,The Insolvency Service,21/06/2016,Accommodation,ESTATES,ACENES HOUSE LTD                                            ,BA0000296875,"2,800.00",182696958
BIS,The Insolvency Service,07/06/2016,Office Supplies and Services,FINANCE AND COMMERCIAL                                                                              ,ACS BUSINESS SUPPLIES LTD                                   ,BA0000296589,413.47,933425432
BIS,The Insolvency Service,07/06/2016,Office Supplies and Services,FINANCE AND COMMERCIAL                                                                              ,ACS BUSINESS SUPPLIES LTD                                   ,BA0000296590,-413.47,933425432
BIS,The Insolvency Service,22/06/2016,Travel and Subsistence,FINANCE AND COMMERCIAL,ALIYA IQBAL                                                 ,BA0000296900,70.00,
BIS,The Insolvency Service,03/06/2016,Agency Workers,FINANCE AND COMMERCIAL                                                                              ,ALLEN LANE LIMITED,BA0000296533,"5,920.68",835970985
BIS,The Insolvency Service,03/06/2016,Agency Workers,FINANCE AND COMMERCIAL                                                                              ,ALLEN LANE LIMITED,BA0000296532,"2,329.80",835970985
BIS,The Insolvency Service,06/06/2016,Agency Workers,FINANCE AND COMMERCIAL                                                                              ,ALLEN LANE LIMITED,BA0000296560,"2,395.49",835970985
BIS,The Insolvency Service,06/06/2016,Agency Workers,FINANCE AND COMMERCIAL                                                                              ,ALLEN LANE LIMITED,BA0000296560,"2,994.36",835970985
BIS,The Insolvency Service,06/06/2016,Agency Workers,FINANCE AND COMMERCIAL                                                                              ,ALLEN LANE LIMITED,BA0000296560,"5,988.72",835970985
BIS,The Insolvency Service,09/06/2016,Agency Workers,FINANCE AND COMMERCIAL                                                                              ,ALLEN LANE LIMITED,BA0000296649,598.87,835970985
BIS,The Insolvency Service,22/06/2016,Agency Workers,FINANCE AND COMMERCIAL                                                                              ,ALLEN LANE LIMITED,BA0000296894,"2,960.34",835970985
BIS,The Insolvency Service,22/06/2016,Agency Workers,FINANCE AND COMMERCIAL                                                                              ,ALLEN LANE LIMITED,BA0000296908,"1,863.84",835970985
BIS,The Insolvency Service,28/06/2016,Agency Workers,FINANCE AND COMMERCIAL                                                                              ,ALLEN LANE LIMITED,BA0000297078,"9,519.23",835970985
BIS,The Insolvency Service,28/06/2016,Agency Workers,INFORMATION TECHNOLOGY                                                                              ,ALLEN LANE LIMITED,BA0000297075,"90,720.00",835970985
BIS,The Insolvency Service,04/05/2016,Accommodation,BUSINESS SERVICES DIRECTORATE                                                                       ,AMAZON.CO.UK LTD,BA0000296747,1.54,727255821
BIS,The Insolvency Service,29/06/2016,Computer and IT Systems,INFORMATION TECHNOLOGY                                                                              ,ATOS IT SERVICES UK LTD,BA0000297109,"1,149.90",
BIS,The Insolvency Service,29/06/2016,Computer and IT Systems,INFORMATION TECHNOLOGY                                                                              ,ATOS IT SERVICES UK LTD,BA0000297110,"197,861.21",
BIS,The Insolvency Service,07/06/2016,Telecoms,INFORMATION TECHNOLOGY                                                                              ,AZZURRI COMMUNICATIONS LTD                                  ,BA0000296587,"42,000.00",
BIS,The Insolvency Service,21/06/2016,Telecoms,INFORMATION TECHNOLOGY                                                                              ,AZZURRI COMMUNICATIONS LTD                                  ,BA0000296850,"4,914.46",
BIS,The Insolvency Service,22/06/2016,Accommodation,ESTATES,AZZURRI COMMUNICATIONS LTD                                  ,BA0000296906,360.00,
BIS,The Insolvency Service,01/06/2016,Computer and IT Systems,INFORMATION TECHNOLOGY                                                                              ,BANG COMMUNICATIONS                                         ,BA0000296452,"16,848.00",569978254
BIS,The Insolvency Service,21/06/2016,Office Supplies and Services,BUSINESS SERVICES DIRECTORATE                                                                       ,BANNER BUSINESS SERVICES Ltd.,BA0000296848,565.04,731860439
BIS,The Insolvency Service,21/06/2016,Office Supplies and Services,FINANCE AND COMMERCIAL,BANNER BUSINESS SERVICES Ltd.,BA0000296848,70.20,731860439
BIS,The Insolvency Service,21/06/2016,Office Supplies and Services,FINANCE AND COMMERCIAL                                                                              ,BANNER BUSINESS SERVICES Ltd.,BA0000296848,"1,199.42",731860439
BIS,The Insolvency Service,21/06/2016,Office Supplies and Services,FINANCE AND COMMERCIAL                                                                              ,BANNER BUSINESS SERVICES Ltd.,BA0000296848,"2,460.58",731860439
BIS,The Insolvency Service,21/06/2016,Office Supplies and Services,INVESTIGATIONS & ENFORCEMENT                                                                        ,BANNER BUSINESS SERVICES Ltd.,BA0000296848,82.75,731860439
BIS,The Insolvency Service,21/06/2016,Office Supplies and Services,OFFICIAL RECEIVER SERVICES                                                                          ,BANNER BUSINESS SERVICES Ltd.,BA0000296848,32.08,731860439
BIS,The Insolvency Service,21/06/2016,Office Supplies and Services,OFFICIAL RECEIVER SERVICES                                                                          ,BANNER BUSINESS SERVICES Ltd.,BA0000296848,57.24,731860439
BIS,The Insolvency Service,21/06/2016,Office Supplies and Services,OFFICIAL RECEIVER SERVICES                                                                          ,BANNER BUSINESS SERVICES Ltd.,BA0000296848,122.45,731860439
BIS,The Insolvency Service,21/06/2016,Office Supplies and Services,OFFICIAL RECEIVER SERVICES                                                                          ,BANNER BUSINESS SERVICES Ltd.,BA0000296848,128.55,731860439
BIS,The Insolvency Service,21/06/2016,Office Supplies and Services,OFFICIAL RECEIVER SERVICES                                                                          ,BANNER BUSINESS SERVICES Ltd.,BA0000296848,203.22,731860439
BIS,The Insolvency Service,21/06/2016,Office Supplies and Services,OFFICIAL RECEIVER SERVICES                                                                          ,BANNER BUSINESS SERVICES Ltd.,BA0000296848,229.64,731860439
BIS,The Insolvency Service,21/06/2016,Office Supplies and Services,OFFICIAL RECEIVER SERVICES                                                                          ,BANNER BUSINESS SERVICES Ltd.,BA0000296848,316.13,731860439
BIS,The Insolvency Service,21/06/2016,Office Supplies and Services,OFFICIAL RECEIVER SERVICES                                                                          ,BANNER BUSINESS SERVICES Ltd.,BA0000296848,386.53,731860439
BIS,The Insolvency Service,21/06/2016,Office Supplies and Services,OFFICIAL RECEIVER SERVICES                                                                          ,BANNER BUSINESS SERVICES Ltd.,BA0000296848,428.64,731860439
BIS,The Insolvency Service,21/06/2016,Office Supplies and Services,OFFICIAL RECEIVER SERVICES                                                                          ,BANNER BUSINESS SERVICES Ltd.,BA0000296848,453.14,731860439
BIS,The Insolvency Service,21/06/2016,Office Supplies and Services,OFFICIAL RECEIVER SERVICES                                                                          ,BANNER BUSINESS SERVICES Ltd.,BA0000296848,798.66,731860439
BIS,The Insolvency Service,28/06/2016,Accommodation,FINANCE AND COMMERCIAL                                                                              ,BANNER BUSINESS SERVICES Ltd.,BA0000297069,16.50,731860439
BIS,The Insolvency Service,28/06/2016,Accommodation,FINANCE AND COMMERCIAL                                                                              ,BANNER BUSINESS SERVICES Ltd.,BA0000297069,18.00,731860439
BIS,The Insolvency Service,28/06/2016,Accommodation,FINANCE AND COMMERCIAL                                                                              ,BANNER BUSINESS SERVICES Ltd.,BA0000297069,19.80,731860439
BIS,The Insolvency Service,28/06/2016,Accommodation,FINANCE AND COMMERCIAL                                                                              ,BANNER BUSINESS SERVICES Ltd.,BA0000297069,25.74,731860439
BIS,The Insolvency Service,28/06/2016,Accommodation,FINANCE AND COMMERCIAL                                                                              ,BANNER BUSINESS SERVICES Ltd.,BA0000297069,27.00,731860439
BIS,The Insolvency Service,28/06/2016,Accommodation,FINANCE AND COMMERCIAL                                                                              ,BANNER BUSINESS SERVICES Ltd.,BA0000297069,33.84,731860439
BIS,The Insolvency Service,28/06/2016,Accommodation,FINANCE AND COMMERCIAL                                                                              ,BANNER BUSINESS SERVICES Ltd.,BA0000297069,36.00,731860439
BIS,The Insolvency Service,28/06/2016,Accommodation,FINANCE AND COMMERCIAL                                                                              ,BANNER BUSINESS SERVICES Ltd.,BA0000297069,36.20,731860439
BIS,The Insolvency Service,28/06/2016,Accommodation,FINANCE AND COMMERCIAL                                                                              ,BANNER BUSINESS SERVICES Ltd.,BA0000297069,43.20,731860439
BIS,The Insolvency Service,28/06/2016,Accommodation,FINANCE AND COMMERCIAL                                                                              ,BANNER BUSINESS SERVICES Ltd.,BA0000297069,48.25,731860439
BIS,The Insolvency Service,28/06/2016,Accommodation,FINANCE AND COMMERCIAL                                                                              ,BANNER BUSINESS SERVICES Ltd.,BA0000297069,51.48,731860439
BIS,The Insolvency Service,28/06/2016,Accommodation,FINANCE AND COMMERCIAL                                                                              ,BANNER BUSINESS SERVICES Ltd.,BA0000297069,56.20,731860439
BIS,The Insolvency Service,28/06/2016,Accommodation,FINANCE AND COMMERCIAL                                                                              ,BANNER BUSINESS SERVICES Ltd.,BA0000297069,98.12,731860439
BIS,The Insolvency Service,28/06/2016,Accommodation,FINANCE AND COMMERCIAL                                                                              ,BANNER BUSINESS SERVICES Ltd.,BA0000297069,100.98,731860439
BIS,The Insolvency Service,28/06/2016,Accommodation,FINANCE AND COMMERCIAL                                                                              ,BANNER BUSINESS SERVICES Ltd.,BA0000297069,714.60,731860439
BIS,The Insolvency Service,01/06/2016,Training Costs,FINANCE AND COMMERCIAL,BIP SOLUTIONS LTD,BA0000296453,150.00,383030966
BIS,The Insolvency Service,01/07/2016,Accommodation,ESTATES                                                                                             ,BIS - DEPT. FOR BUSINESS INNOVATION & SKILLS,BA0000297179,"36,816.73",888825550
BIS,The Insolvency Service,01/07/2016,Accommodation,ESTATES,BIS - DEPT. FOR BUSINESS INNOVATION & SKILLS,BA0000297180,"290,943.00",888825550
BIS,The Insolvency Service,01/07/2016,Accommodation,ESTATES,BIS - DEPT. FOR BUSINESS INNOVATION & SKILLS,BA0000297181,"20,704.00",888825550
BIS,The Insolvency Service,01/07/2016,Accommodation,ESTATES,BIS - DEPT. FOR BUSINESS INNOVATION & SKILLS,BA0000297180,"239,784.00",888825550
BIS,The Insolvency Service,01/07/2016,Accommodation,ESTATES,BIS - DEPT. FOR BUSINESS INNOVATION & SKILLS,BA0000297181,"11,286.00",888825550
BIS,The Insolvency Service,01/07/2016,Accommodation,ESTATES,BIS - DEPT. FOR BUSINESS INNOVATION & SKILLS,BA0000297182,"20,405.06",888825550
BIS,The Insolvency Service,21/06/2016,Accommodation,ESTATES,BIS - DEPT. FOR BUSINESS INNOVATION & SKILLS,BA0000296876,"58,524.76",888825550
BIS,The Insolvency Service,21/06/2016,Accommodation,ESTATES,BIS - DEPT. FOR BUSINESS INNOVATION & SKILLS,BA0000296878,"9,505.25",888825550
BIS,The Insolvency Service,29/06/2016,Accommodation,ESTATES,BIS - DEPT. FOR BUSINESS INNOVATION & SKILLS,BA0000297106,"115,000.76",888825550
BIS,The Insolvency Service,09/06/2016,Investigation and Enforcement Costs,INVESTIGATIONS & ENFORCEMENT                                                                        ,BOND DICKINSON                                              ,BA0000296628,"13,901.70",123392627
BIS,The Insolvency Service,09/06/2016,Investigation and Enforcement Costs,INVESTIGATIONS & ENFORCEMENT                                                                        ,BOND DICKINSON                                              ,BA0000296628,"61,386.89",123392627
BIS,The Insolvency Service,09/06/2016,Investigation and Enforcement Costs,INVESTIGATIONS & ENFORCEMENT                                                                        ,BOND DICKINSON                                              ,BA0000296628,77.60,123392627
BIS,The Insolvency Service,09/06/2016,Investigation and Enforcement Costs,INVESTIGATIONS & ENFORCEMENT                                                                        ,BOND DICKINSON                                              ,BA0000296628,"11,243.40",123392627
BIS,The Insolvency Service,09/06/2016,Investigation and Enforcement Costs,INVESTIGATIONS & ENFORCEMENT                                                                        ,BOND DICKINSON                                              ,BA0000296628,"16,067.15",123392627
BIS,The Insolvency Service,09/06/2016,Investigation and Enforcement Costs,INVESTIGATIONS & ENFORCEMENT                                                                        ,BOND DICKINSON                                              ,BA0000296628,"16,935.50",123392627
BIS,The Insolvency Service,28/06/2016,Investigation and Enforcement Costs,INVESTIGATIONS & ENFORCEMENT                                                                        ,BOND DICKINSON                                              ,BA0000297081,"25,000.00",123392627
BIS,The Insolvency Service,10/06/2016,Computer and IT Systems,INFORMATION TECHNOLOGY                                                                              ,BOTTOMLINE TECHNOLOGIES,BA0000296660,224.63,724548231
BIS,The Insolvency Service,02/06/2016,Training Costs,PEOPLE & CAPABILITY                                                                                 ,BPP PROFESSIONAL EDUCATION,BA0000296500,"2,820.50",466451629
BIS,The Insolvency Service,02/06/2016,Agency Workers,FINANCE AND COMMERCIAL,BROOK STREET (UK) LTD,BA0000296503,"39,225.45",
BIS,The Insolvency Service,09/06/2016,Agency Workers,FINANCE AND COMMERCIAL,BROOK STREET (UK) LTD,BA0000296654,"35,279.58",
BIS,The Insolvency Service,16/06/2016,Agency Workers,FINANCE AND COMMERCIAL,BROOK STREET (UK) LTD,BA0000296812,"47,911.63",
BIS,The Insolvency Service,23/06/2016,Agency Workers,FINANCE AND COMMERCIAL,BROOK STREET (UK) LTD,BA0000296975,"44,787.78",
BIS,The Insolvency Service,03/06/2016,Telecoms,CUSTOMER AND COMMUNICATIONS                                                                         ,BT CONFERENCING SERVICES,BA0000296540,78.89,245719348
BIS,The Insolvency Service,03/06/2016,Telecoms,FINANCE AND COMMERCIAL,BT CONFERENCING SERVICES,BA0000296540,0.10,245719348
BIS,The Insolvency Service,03/06/2016,Telecoms,FINANCE AND COMMERCIAL,BT CONFERENCING SERVICES,BA0000296540,26.35,245719348
BIS,The Insolvency Service,03/06/2016,Telecoms,FINANCE AND COMMERCIAL                                                                              ,BT CONFERENCING SERVICES,BA0000296540,47.29,245719348
BIS,The Insolvency Service,03/06/2016,Telecoms,FINANCE AND COMMERCIAL                                                                              ,BT CONFERENCING SERVICES,BA0000296540,61.15,245719348
BIS,The Insolvency Service,03/06/2016,Telecoms,FINANCE AND COMMERCIAL                                                                              ,BT CONFERENCING SERVICES,BA0000296540,83.18,245719348
BIS,The Insolvency Service,03/06/2016,Telecoms,FINANCE AND COMMERCIAL                                                                              ,BT CONFERENCING SERVICES,BA0000296540,119.34,245719348
BIS,The Insolvency Service,03/06/2016,Telecoms,FINANCE AND COMMERCIAL                                                                              ,BT CONFERENCING SERVICES,BA0000296540,558.01,245719348
BIS,The Insolvency Service,03/06/2016,Telecoms,INFORMATION TECHNOLOGY                                                                              ,BT CONFERENCING SERVICES,BA0000296540,11.90,245719348
BIS,The Insolvency Service,03/06/2016,Telecoms,INFORMATION TECHNOLOGY                                                                              ,BT CONFERENCING SERVICES,BA0000296540,17.56,245719348
BIS,The Insolvency Service,03/06/2016,Telecoms,INFORMATION TECHNOLOGY                                                                              ,BT CONFERENCING SERVICES,BA0000296540,188.93,245719348
BIS,The Insolvency Service,03/06/2016,Telecoms,INVESTIGATIONS & ENFORCEMENT                                                                        ,BT CONFERENCING SERVICES,BA0000296540,6.35,245719348
BIS,The Insolvency Service,03/06/2016,Telecoms,INVESTIGATIONS & ENFORCEMENT                                                                        ,BT CONFERENCING SERVICES,BA0000296540,17.22,245719348
BIS,The Insolvency Service,03/06/2016,Telecoms,INVESTIGATIONS & ENFORCEMENT                                                                        ,BT CONFERENCING SERVICES,BA0000296540,19.90,245719348
BIS,The Insolvency Service,03/06/2016,Telecoms,OFFICIAL RECEIVER SERVICES                                                                          ,BT CONFERENCING SERVICES,BA0000296540,2.21,245719348
BIS,The Insolvency Service,03/06/2016,Telecoms,OFFICIAL RECEIVER SERVICES                                                                          ,BT CONFERENCING SERVICES,BA0000296540,4.87,245719348
BIS,The Insolvency Service,03/06/2016,Telecoms,OFFICIAL RECEIVER SERVICES                                                                          ,BT CONFERENCING SERVICES,BA0000296540,5.39,245719348
BIS,The Insolvency Service,03/06/2016,Telecoms,OFFICIAL RECEIVER SERVICES                                                                          ,BT CONFERENCING SERVICES,BA0000296540,7.27,245719348
BIS,The Insolvency Service,03/06/2016,Telecoms,OFFICIAL RECEIVER SERVICES                                                                          ,BT CONFERENCING SERVICES,BA0000296540,17.00,245719348
BIS,The Insolvency Service,03/06/2016,Telecoms,OFFICIAL RECEIVER SERVICES                                                                          ,BT CONFERENCING SERVICES,BA0000296540,20.68,245719348
BIS,The Insolvency Service,03/06/2016,Telecoms,OFFICIAL RECEIVER SERVICES                                                                          ,BT CONFERENCING SERVICES,BA0000296540,25.86,245719348
BIS,The Insolvency Service,03/06/2016,Telecoms,OFFICIAL RECEIVER SERVICES                                                                          ,BT CONFERENCING SERVICES,BA0000296540,29.15,245719348
BIS,The Insolvency Service,03/06/2016,Telecoms,OFFICIAL RECEIVER SERVICES                                                                          ,BT CONFERENCING SERVICES,BA0000296540,44.48,245719348
BIS,The Insolvency Service,03/06/2016,Telecoms,OFFICIAL RECEIVER SERVICES                                                                          ,BT CONFERENCING SERVICES,BA0000296540,44.50,245719348
BIS,The Insolvency Service,03/06/2016,Telecoms,OFFICIAL RECEIVER SERVICES                                                                          ,BT CONFERENCING SERVICES,BA0000296540,48.40,245719348
BIS,The Insolvency Service,03/06/2016,Telecoms,OFFICIAL RECEIVER SERVICES                                                                          ,BT CONFERENCING SERVICES,BA0000296540,60.19,245719348
BIS,The Insolvency Service,03/06/2016,Telecoms,P&C - Talent                                                                                        ,BT CONFERENCING SERVICES,BA0000296540,1.66,245719348
BIS,The Insolvency Service,03/06/2016,Telecoms,PEOPLE & CAPABILITY                                                                                 ,BT CONFERENCING SERVICES,BA0000296540,2.36,245719348
BIS,The Insolvency Service,03/06/2016,Telecoms,PEOPLE & CAPABILITY                                                                                 ,BT CONFERENCING SERVICES,BA0000296540,55.32,245719348
BIS,The Insolvency Service,03/06/2016,Telecoms,PROJECTS                                                                                            ,BT CONFERENCING SERVICES,BA0000296540,15.61,245719348
BIS,The Insolvency Service,03/06/2016,Telecoms,STRATEGY                                                                                            ,BT CONFERENCING SERVICES,BA0000296540,5.42,245719348
BIS,The Insolvency Service,01/06/2016,Telecoms,OFFICIAL RECEIVER SERVICES                                                                          ,BT TELEPHONE PAYMENT CENTRE,BA0000296446,107.28,245719348
BIS,The Insolvency Service,28/06/2016,Computer and IT Systems,INFORMATION TECHNOLOGY                                                                              ,BT TELEPHONE PAYMENT CENTRE,BA0000297067,"7,964.65",245719348
BIS,The Insolvency Service,15/06/2016,Investigation and Enforcement Costs,INVESTIGATIONS & ENFORCEMENT                                                                        ,BURNESS PAULL & WILLIAMSONS SOLICITORS,BA0000296764,235.00,268398111
BIS,The Insolvency Service,15/06/2016,Investigation and Enforcement Costs,INVESTIGATIONS & ENFORCEMENT                                                                        ,BURNESS PAULL & WILLIAMSONS SOLICITORS,BA0000296764,"10,706.00",268398111
BIS,The Insolvency Service,15/06/2016,Investigation and Enforcement Costs,INVESTIGATIONS & ENFORCEMENT                                                                        ,BURNESS PAULL & WILLIAMSONS SOLICITORS,BA0000296764,"3,904.25",268398111
BIS,The Insolvency Service,28/06/2016,Office Supplies and Services,P&C - People Relations                                                                              ,BUSINESS DISABILITY FORUM                                   ,BA0000297082,"4,080.00",
BIS,The Insolvency Service,01/06/2016,Training Costs,PEOPLE & CAPABILITY                                                                                 ,CAPITA BUSINESS SERVICES LTD,BA0000296447,137.00,618184140
BIS,The Insolvency Service,01/06/2016,Training Costs,PEOPLE & CAPABILITY                                                                                 ,CAPITA BUSINESS SERVICES LTD,BA0000296448,137.00,618184140
BIS,The Insolvency Service,01/06/2016,Training Costs,PEOPLE & CAPABILITY                                                                                 ,CAPITA BUSINESS SERVICES LTD,BA0000296449,146.00,618184140
BIS,The Insolvency Service,01/06/2016,Training Costs,PEOPLE & CAPABILITY                                                                                 ,CAPITA BUSINESS SERVICES LTD,BA0000296450,146.00,618184140
BIS,The Insolvency Service,01/06/2016,Training Costs,PEOPLE & CAPABILITY                                                                                 ,CAPITA BUSINESS SERVICES LTD,BA0000296451,146.00,618184140
BIS,The Insolvency Service,02/06/2016,Training Costs,PEOPLE & CAPABILITY                                                                                 ,CAPITA BUSINESS SERVICES LTD,BA0000296501,146.00,618184140
BIS,The Insolvency Service,14/06/2016,Training Costs,PEOPLE & CAPABILITY                                                                                 ,CAPITA BUSINESS SERVICES LTD,BA0000296699,"1,840.00",618184140
BIS,The Insolvency Service,21/06/2016,Training Costs,INFORMATION TECHNOLOGY                                                                              ,CAPITA BUSINESS SERVICES LTD,BA0000296880,522.73,618184140
BIS,The Insolvency Service,23/06/2016,Training Costs,INVESTIGATIONS & ENFORCEMENT                                                                        ,CAPITA BUSINESS SERVICES LTD,BA0000296969,975.60,618184140
BIS,The Insolvency Service,23/06/2016,Training Costs,INVESTIGATIONS & ENFORCEMENT                                                                        ,CAPITA BUSINESS SERVICES LTD,BA0000296948,487.80,618184140
BIS,The Insolvency Service,14/06/2016,Accommodation,ESTATES,CARILLION SERVICE SOLUTIONS,BA0000296729,"161,977.50",894545868
BIS,The Insolvency Service,14/06/2016,Accommodation,ESTATES,CARILLION SERVICES,BA0000296728,"40,633.34",894545868
BIS,The Insolvency Service,14/06/2016,Accommodation,ESTATES,CARILLION SERVICES,BA0000296728,"4,748.23",894545868
BIS,The Insolvency Service,14/06/2016,Accommodation,ESTATES,CBRE LIMITED,BA0000296713,"2,034.42",
BIS,The Insolvency Service,14/06/2016,Accommodation,ESTATES,CBRE LIMITED,BA0000296720,"1,349.63",
BIS,The Insolvency Service,14/06/2016,Accommodation,ESTATES,CBRE LIMITED,BA0000296727,"1,349.62",
BIS,The Insolvency Service,14/06/2016,Accommodation,ESTATES,CBRE LIMITED,BA0000296739,"1,712.34",
BIS,The Insolvency Service,16/06/2016,Accommodation,ESTATES,CBRE LIMITED,BA0000296790,"1,030.43",
BIS,The Insolvency Service,16/06/2016,Accommodation,ESTATES,CBRE LIMITED,BA0000296787,"1,030.43",
BIS,The Insolvency Service,01/07/2016,Accommodation,ESTATES,CBRE Ltd,BA0000297183,525.01,
BIS,The Insolvency Service,14/06/2016,Accommodation,ESTATES,CBRE Ltd,BA0000296719,"1,094.11",
BIS,The Insolvency Service,15/06/2016,Accommodation,ESTATES,CBRE Ltd,BA0000296772,"12,191.70",
BIS,The Insolvency Service,15/06/2016,Conferences,CUSTOMER AND COMMUNICATIONS                                                                         ,CHURCH HOUSE CONFERENCE CENTRE LTD,BA0000296776,"8,904.00",
BIS,The Insolvency Service,07/06/2016,Postage,INFORMATION TECHNOLOGY                                                                              ,CITY SPRINT UK LTD,BA0000296588,6.88,
BIS,The Insolvency Service,17/06/2016,Accommodation,INFORMATION TECHNOLOGY                                                                              ,CITY SPRINT UK LTD,BA0000296826,94.00,
BIS,The Insolvency Service,21/06/2016,Postage,OFFICIAL RECEIVER SERVICES                                                                          ,CITY SPRINT UK LTD,BA0000296866,113.39,
BIS,The Insolvency Service,21/06/2016,Postage,OFFICIAL RECEIVER SERVICES                                                                          ,CITY SPRINT UK LTD,BA0000296867,65.19,
BIS,The Insolvency Service,21/06/2016,Postage,OFFICIAL RECEIVER SERVICES                                                                          ,CITY SPRINT UK LTD,BA0000296868,44.04,
BIS,The Insolvency Service,21/06/2016,Postage,OFFICIAL RECEIVER SERVICES                                                                          ,CITY SPRINT UK LTD,BA0000296869,133.76,
BIS,The Insolvency Service,21/06/2016,Postage,OFFICIAL RECEIVER SERVICES                                                                          ,CITY SPRINT UK LTD,BA0000296870,31.07,
BIS,The Insolvency Service,21/06/2016,Postage,OFFICIAL RECEIVER SERVICES                                                                          ,CITY SPRINT UK LTD,BA0000296849,140.16,
BIS,The Insolvency Service,21/06/2016,Postage,OFFICIAL RECEIVER SERVICES                                                                          ,CITY SPRINT UK LTD,BA0000296853,49.36,
BIS,The Insolvency Service,21/06/2016,Postage,OFFICIAL RECEIVER SERVICES                                                                          ,CITY SPRINT UK LTD,BA0000296854,69.52,
BIS,The Insolvency Service,21/06/2016,Postage,OFFICIAL RECEIVER SERVICES                                                                          ,CITY SPRINT UK LTD,BA0000296871,85.76,
BIS,The Insolvency Service,21/06/2016,Postage,OFFICIAL RECEIVER SERVICES                                                                          ,CITY SPRINT UK LTD,BA0000296882,19.03,
BIS,The Insolvency Service,28/06/2016,Postage,OFFICIAL RECEIVER SERVICES                                                                          ,CITY SPRINT UK LTD,BA0000297074,24.16,
BIS,The Insolvency Service,22/06/2016,Investigation and Enforcement Costs,INVESTIGATIONS & ENFORCEMENT                                                                        ,CLARKE WILLMOTT SOLICITORS,BA0000296891,261.06,129913060
BIS,The Insolvency Service,24/05/2016,Accommodation,BUSINESS SERVICES DIRECTORATE                                                                       ,CLOUDFARE                                                   ,BA0000296747,157.73,
BIS,The Insolvency Service,01/06/2016,Insolvency Case Related Costs,OFFICIAL RECEIVER SERVICES                                                                          ,COMPANIES HOUSE,BA0000296457,5.00,GD255
BIS,The Insolvency Service,06/06/2016,Insolvency Case Related Costs,OFFICIAL RECEIVER SERVICES                                                                          ,COMPANIES HOUSE,BA0000296566,4.00,GD255
BIS,The Insolvency Service,06/06/2016,Insolvency Case Related Costs,OFFICIAL RECEIVER SERVICES                                                                          ,COMPANIES HOUSE,BA0000296580,4.00,GD255
BIS,The Insolvency Service,07/06/2016,Insolvency Case Related Costs,OFFICIAL RECEIVER SERVICES                                                                          ,COMPANIES HOUSE,BA0000296586,4.00,GD255
BIS,The Insolvency Service,07/06/2016,Insolvency Case Related Costs,OFFICIAL RECEIVER SERVICES                                                                          ,COMPANIES HOUSE,BA0000296599,7.00,GD255
BIS,The Insolvency Service,08/06/2016,Insolvency Case Related Costs,OFFICIAL RECEIVER SERVICES                                                                          ,COMPANIES HOUSE,BA0000296607,4.00,GD255
BIS,The Insolvency Service,09/06/2016,Insolvency Case Related Costs,OFFICIAL RECEIVER SERVICES                                                                          ,COMPANIES HOUSE,BA0000296655,4.00,GD255
BIS,The Insolvency Service,09/06/2016,Insolvency Case Related Costs,INVESTIGATIONS & ENFORCEMENT                                                                        ,COMPANIES HOUSE,BA0000296637,203.00,GD255
BIS,The Insolvency Service,09/06/2016,Insolvency Case Related Costs,INVESTIGATIONS & ENFORCEMENT                                                                        ,COMPANIES HOUSE,BA0000296640,49.00,GD255
BIS,The Insolvency Service,09/06/2016,Insolvency Case Related Costs,INVESTIGATIONS & ENFORCEMENT                                                                        ,COMPANIES HOUSE,BA0000296641,101.00,GD255
BIS,The Insolvency Service,09/06/2016,Insolvency Case Related Costs,INVESTIGATIONS & ENFORCEMENT                                                                        ,COMPANIES HOUSE,BA0000296642,4.00,GD255
BIS,The Insolvency Service,09/06/2016,Insolvency Case Related Costs,OFFICIAL RECEIVER SERVICES                                                                          ,COMPANIES HOUSE,BA0000296636,4.00,GD255
BIS,The Insolvency Service,09/06/2016,Insolvency Case Related Costs,OFFICIAL RECEIVER SERVICES                                                                          ,COMPANIES HOUSE,BA0000296645,4.00,GD255
BIS,The Insolvency Service,09/06/2016,Insolvency Case Related Costs,OFFICIAL RECEIVER SERVICES                                                                          ,COMPANIES HOUSE,BA0000296646,4.00,GD255
BIS,The Insolvency Service,09/06/2016,Insolvency Case Related Costs,OFFICIAL RECEIVER SERVICES                                                                          ,COMPANIES HOUSE,BA0000296647,4.00,GD255
BIS,The Insolvency Service,09/06/2016,Insolvency Case Related Costs,OFFICIAL RECEIVER SERVICES                                                                          ,COMPANIES HOUSE,BA0000296648,4.00,GD255
BIS,The Insolvency Service,14/06/2016,Insolvency Case Related Costs,OFFICIAL RECEIVER SERVICES                                                                          ,COMPANIES HOUSE,BA0000296698,5.00,GD255
BIS,The Insolvency Service,14/06/2016,Insolvency Case Related Costs,OFFICIAL RECEIVER SERVICES                                                                          ,COMPANIES HOUSE,BA0000296680,4.00,GD255
BIS,The Insolvency Service,14/06/2016,Insolvency Case Related Costs,OFFICIAL RECEIVER SERVICES                                                                          ,COMPANIES HOUSE,BA0000296681,4.00,GD255
BIS,The Insolvency Service,14/06/2016,Insolvency Case Related Costs,OFFICIAL RECEIVER SERVICES                                                                          ,COMPANIES HOUSE,BA0000296696,4.00,GD255
BIS,The Insolvency Service,14/06/2016,Insolvency Case Related Costs,OFFICIAL RECEIVER SERVICES                                                                          ,COMPANIES HOUSE,BA0000296697,4.00,GD255
BIS,The Insolvency Service,15/06/2016,Insolvency Case Related Costs,OFFICIAL RECEIVER SERVICES                                                                          ,COMPANIES HOUSE,BA0000296751,4.00,GD255
BIS,The Insolvency Service,15/06/2016,Insolvency Case Related Costs,OFFICIAL RECEIVER SERVICES                                                                          ,COMPANIES HOUSE,BA0000296780,5.00,GD255
BIS,The Insolvency Service,15/06/2016,Insolvency Case Related Costs,OFFICIAL RECEIVER SERVICES                                                                          ,COMPANIES HOUSE,BA0000296774,8.00,GD255
BIS,The Insolvency Service,21/06/2016,Insolvency Case Related Costs,OFFICIAL RECEIVER SERVICES                                                                          ,COMPANIES HOUSE,BA0000296872,4.00,GD255
BIS,The Insolvency Service,01/07/2016,Agency Workers,INFORMATION TECHNOLOGY                                                                              ,CONCEPT INFORMATION TECHNOLOGY LTD                          ,BA0000297174,"1,950.00",776147892
BIS,The Insolvency Service,03/06/2016,Agency Workers,INFORMATION TECHNOLOGY                                                                              ,CONCEPT INFORMATION TECHNOLOGY LTD                          ,BA0000296534,"1,950.00",776147892
BIS,The Insolvency Service,09/06/2016,Agency Workers,INFORMATION TECHNOLOGY                                                                              ,CONCEPT INFORMATION TECHNOLOGY LTD                          ,BA0000296643,"1,560.00",776147892
BIS,The Insolvency Service,09/06/2016,Agency Workers,INFORMATION TECHNOLOGY                                                                              ,CONCEPT INFORMATION TECHNOLOGY LTD                          ,BA0000296644,"2,448.00",776147892
BIS,The Insolvency Service,16/06/2016,Agency Workers,INFORMATION TECHNOLOGY                                                                              ,CONCEPT INFORMATION TECHNOLOGY LTD                          ,BA0000296810,"1,950.00",776147892
BIS,The Insolvency Service,16/06/2016,Agency Workers,INFORMATION TECHNOLOGY                                                                              ,CONCEPT INFORMATION TECHNOLOGY LTD                          ,BA0000296811,"2,448.00",776147892
BIS,The Insolvency Service,24/06/2016,Agency Workers,INFORMATION TECHNOLOGY                                                                              ,CONCEPT INFORMATION TECHNOLOGY LTD                          ,BA0000297004,"2,448.00",776147892
BIS,The Insolvency Service,24/06/2016,Agency Workers,INFORMATION TECHNOLOGY                                                                              ,CONCEPT INFORMATION TECHNOLOGY LTD                          ,BA0000297005,"1,950.00",776147892
BIS,The Insolvency Service,02/06/2016,Computer and IT Systems,INFORMATION TECHNOLOGY                                                                              ,CONDECO LTD  PREVIOUSLY (RNM SYSTEMS LIMITED),BA0000296474,"10,865.53",756256215
BIS,The Insolvency Service,01/07/2016,Agency Workers,FINANCE AND COMMERCIAL                                                                              ,CONSORTIA PERSONNEL LIMITED                                 ,BA0000297175,"3,900.00",977841055
BIS,The Insolvency Service,14/06/2016,Accommodation,ESTATES,CORONA ENERGY RETAIL 4 LIMITED,BA0000296740,105.57,714232961
BIS,The Insolvency Service,14/06/2016,Accommodation,ESTATES,CORONA ENERGY RETAIL 4 LIMITED,BA0000296741,33.43,714232961
BIS,The Insolvency Service,14/06/2016,Accommodation,ESTATES,CORONA ENERGY RETAIL 4 LIMITED,BA0000296742,33.43,714232961
BIS,The Insolvency Service,21/06/2016,Accommodation,ESTATES,CORONA ENERGY RETAIL 4 LIMITED,BA0000296860,75.96,714232961
BIS,The Insolvency Service,21/06/2016,Accommodation,ESTATES,CORONA ENERGY RETAIL 4 LIMITED,BA0000296861,26.64,714232961
BIS,The Insolvency Service,21/06/2016,Accommodation,ESTATES,CORONA ENERGY RETAIL 4 LIMITED,BA0000296862,26.64,714232961
BIS,The Insolvency Service,14/06/2016,Accommodation,ESTATES,DEPARTMENT FOR WORK & PENSIONS,BA0000296714,123.47,888815554
BIS,The Insolvency Service,14/06/2016,Accommodation,ESTATES,DEPARTMENT FOR WORK & PENSIONS,BA0000296743,643.83,888815554
BIS,The Insolvency Service,14/06/2016,Accommodation,ESTATES,DEPARTMENT FOR WORK & PENSIONS,BA0000296716,-14.35,888815554
BIS,The Insolvency Service,21/06/2016,Accommodation,ESTATES,DEPARTMENT FOR WORK & PENSIONS,BA0000296863,24.65,888815554
BIS,The Insolvency Service,14/06/2016,Accommodation,ESTATES,DERING PROPERTIES LTD (RENT),BA0000296721,"7,243.75",
BIS,The Insolvency Service,14/06/2016,Accommodation,ESTATES,DERING PROPERTIES LTD (RENT),BA0000296721,"9,837.49",
BIS,The Insolvency Service,14/06/2016,Accommodation,ESTATES,DERING PROPERTIES LTD. (svc),BA0000296717,"2,170.45",
BIS,The Insolvency Service,14/06/2016,Accommodation,ESTATES,DERING PROPERTIES LTD. (svc),BA0000296717,"6,092.82",
BIS,The Insolvency Service,06/06/2016,Employee Related Costs,PEOPLE & CAPABILITY                                                                                 ,DISCLOSURE SCOTLAND,BA0000296572,25.00,
BIS,The Insolvency Service,04/05/2016,Accommodation,BUSINESS SERVICES DIRECTORATE                                                                       ,DOLLAR PHOTO CLUB                                           ,BA0000296747,0.04,
BIS,The Insolvency Service,04/05/2016,Computer and IT Systems,BUSINESS SERVICES DIRECTORATE                                                                       ,DOLLAR PHOTO CLUB                                           ,BA0000296747,1.88,
BIS,The Insolvency Service,26/05/2016,Accommodation,BUSINESS SERVICES DIRECTORATE                                                                       ,DOLLAR PHOTO CLUB                                           ,BA0000296747,4.34,
BIS,The Insolvency Service,08/06/2016,Investigation and Enforcement Costs,INVESTIGATIONS & ENFORCEMENT                                                                        ,DWF                                                         ,BA0000296619,"2,442.00",
BIS,The Insolvency Service,08/06/2016,Investigation and Enforcement Costs,INVESTIGATIONS & ENFORCEMENT                                                                        ,DWF                                                         ,BA0000296611,"11,459.50",
BIS,The Insolvency Service,09/06/2016,Investigation and Enforcement Costs,INVESTIGATIONS & ENFORCEMENT                                                                        ,DWF                                                         ,BA0000296630,87.00,
BIS,The Insolvency Service,09/06/2016,Investigation and Enforcement Costs,INVESTIGATIONS & ENFORCEMENT                                                                        ,DWF                                                         ,BA0000296630,"1,292.00",
BIS,The Insolvency Service,15/06/2016,Investigation and Enforcement Costs,INVESTIGATIONS & ENFORCEMENT                                                                        ,DWF                                                         ,BA0000296762,"41,287.37",
BIS,The Insolvency Service,15/06/2016,Investigation and Enforcement Costs,INVESTIGATIONS & ENFORCEMENT                                                                        ,DWF                                                         ,BA0000296763,"1,842.00",
BIS,The Insolvency Service,21/06/2016,Investigation and Enforcement Costs,INVESTIGATIONS & ENFORCEMENT                                                                        ,DWF                                                         ,BA0000296881,"4,019.56",
BIS,The Insolvency Service,07/06/2016,Postage,INFORMATION TECHNOLOGY                                                                              ,DX NETWORK SERVICES LTD,BA0000296593,265.19,849741385
BIS,The Insolvency Service,07/06/2016,Postage,INFORMATION TECHNOLOGY                                                                              ,DX NETWORK SERVICES LTD,BA0000296593,281.38,849741385
BIS,The Insolvency Service,07/06/2016,Postage,INFORMATION TECHNOLOGY                                                                              ,DX NETWORK SERVICES LTD,BA0000296594,314.42,849741385
BIS,The Insolvency Service,07/06/2016,Postage,INFORMATION TECHNOLOGY                                                                              ,DX NETWORK SERVICES LTD,BA0000296594,394.42,849741385
BIS,The Insolvency Service,07/06/2016,Postage,INFORMATION TECHNOLOGY                                                                              ,DX NETWORK SERVICES LTD,BA0000296596,"1,125.00",849741385
BIS,The Insolvency Service,07/06/2016,Postage,OFFICIAL RECEIVER SERVICES                                                                          ,DX NETWORK SERVICES LTD,BA0000296591,399.00,849741385
BIS,The Insolvency Service,07/06/2016,Postage,OFFICIAL RECEIVER SERVICES                                                                          ,DX NETWORK SERVICES LTD,BA0000296591,399.00,849741385
BIS,The Insolvency Service,07/06/2016,Postage,OFFICIAL RECEIVER SERVICES                                                                          ,DX NETWORK SERVICES LTD,BA0000296592,110.83,849741385
BIS,The Insolvency Service,07/06/2016,Postage,OFFICIAL RECEIVER SERVICES                                                                          ,DX NETWORK SERVICES LTD,BA0000296593,18.90,849741385
BIS,The Insolvency Service,07/06/2016,Postage,OFFICIAL RECEIVER SERVICES                                                                          ,DX NETWORK SERVICES LTD,BA0000296593,123.60,849741385
BIS,The Insolvency Service,07/06/2016,Postage,OFFICIAL RECEIVER SERVICES                                                                          ,DX NETWORK SERVICES LTD,BA0000296593,125.51,849741385
BIS,The Insolvency Service,07/06/2016,Postage,OFFICIAL RECEIVER SERVICES                                                                          ,DX NETWORK SERVICES LTD,BA0000296593,143.38,849741385
BIS,The Insolvency Service,07/06/2016,Postage,OFFICIAL RECEIVER SERVICES                                                                          ,DX NETWORK SERVICES LTD,BA0000296593,214.49,849741385
BIS,The Insolvency Service,07/06/2016,Postage,OFFICIAL RECEIVER SERVICES                                                                          ,DX NETWORK SERVICES LTD,BA0000296593,221.50,849741385
BIS,The Insolvency Service,07/06/2016,Postage,OFFICIAL RECEIVER SERVICES                                                                          ,DX NETWORK SERVICES LTD,BA0000296593,236.34,849741385
BIS,The Insolvency Service,07/06/2016,Postage,OFFICIAL RECEIVER SERVICES                                                                          ,DX NETWORK SERVICES LTD,BA0000296593,250.79,849741385
BIS,The Insolvency Service,07/06/2016,Postage,OFFICIAL RECEIVER SERVICES                                                                          ,DX NETWORK SERVICES LTD,BA0000296593,273.74,849741385
BIS,The Insolvency Service,07/06/2016,Postage,OFFICIAL RECEIVER SERVICES                                                                          ,DX NETWORK SERVICES LTD,BA0000296593,277.99,849741385
BIS,The Insolvency Service,07/06/2016,Postage,OFFICIAL RECEIVER SERVICES                                                                          ,DX NETWORK SERVICES LTD,BA0000296593,294.24,849741385
BIS,The Insolvency Service,07/06/2016,Postage,OFFICIAL RECEIVER SERVICES                                                                          ,DX NETWORK SERVICES LTD,BA0000296593,419.39,849741385
BIS,The Insolvency Service,07/06/2016,Postage,OFFICIAL RECEIVER SERVICES                                                                          ,DX NETWORK SERVICES LTD,BA0000296593,443.69,849741385
BIS,The Insolvency Service,07/06/2016,Postage,OFFICIAL RECEIVER SERVICES                                                                          ,DX NETWORK SERVICES LTD,BA0000296593,597.88,849741385
BIS,The Insolvency Service,07/06/2016,Postage,OFFICIAL RECEIVER SERVICES                                                                          ,DX NETWORK SERVICES LTD,BA0000296593,931.95,849741385
BIS,The Insolvency Service,07/06/2016,Postage,OFFICIAL RECEIVER SERVICES                                                                          ,DX NETWORK SERVICES LTD,BA0000296593,"1,019.55",849741385
BIS,The Insolvency Service,07/06/2016,Postage,OFFICIAL RECEIVER SERVICES                                                                          ,DX NETWORK SERVICES LTD,BA0000296594,61.24,849741385
BIS,The Insolvency Service,07/06/2016,Postage,OFFICIAL RECEIVER SERVICES                                                                          ,DX NETWORK SERVICES LTD,BA0000296594,126.41,849741385
BIS,The Insolvency Service,07/06/2016,Postage,OFFICIAL RECEIVER SERVICES                                                                          ,DX NETWORK SERVICES LTD,BA0000296594,143.24,849741385
BIS,The Insolvency Service,07/06/2016,Postage,OFFICIAL RECEIVER SERVICES                                                                          ,DX NETWORK SERVICES LTD,BA0000296594,183.94,849741385
BIS,The Insolvency Service,07/06/2016,Postage,OFFICIAL RECEIVER SERVICES                                                                          ,DX NETWORK SERVICES LTD,BA0000296594,188.11,849741385
BIS,The Insolvency Service,07/06/2016,Postage,OFFICIAL RECEIVER SERVICES                                                                          ,DX NETWORK SERVICES LTD,BA0000296594,250.49,849741385
BIS,The Insolvency Service,07/06/2016,Postage,OFFICIAL RECEIVER SERVICES                                                                          ,DX NETWORK SERVICES LTD,BA0000296594,271.84,849741385
BIS,The Insolvency Service,07/06/2016,Postage,OFFICIAL RECEIVER SERVICES                                                                          ,DX NETWORK SERVICES LTD,BA0000296594,283.31,849741385
BIS,The Insolvency Service,07/06/2016,Postage,OFFICIAL RECEIVER SERVICES                                                                          ,DX NETWORK SERVICES LTD,BA0000296594,299.14,849741385
BIS,The Insolvency Service,07/06/2016,Postage,OFFICIAL RECEIVER SERVICES                                                                          ,DX NETWORK SERVICES LTD,BA0000296594,328.55,849741385
BIS,The Insolvency Service,07/06/2016,Postage,OFFICIAL RECEIVER SERVICES                                                                          ,DX NETWORK SERVICES LTD,BA0000296594,340.84,849741385
BIS,The Insolvency Service,07/06/2016,Postage,OFFICIAL RECEIVER SERVICES                                                                          ,DX NETWORK SERVICES LTD,BA0000296594,426.29,849741385
BIS,The Insolvency Service,07/06/2016,Postage,OFFICIAL RECEIVER SERVICES                                                                          ,DX NETWORK SERVICES LTD,BA0000296594,461.06,849741385
BIS,The Insolvency Service,07/06/2016,Postage,OFFICIAL RECEIVER SERVICES                                                                          ,DX NETWORK SERVICES LTD,BA0000296594,645.55,849741385
BIS,The Insolvency Service,07/06/2016,Postage,OFFICIAL RECEIVER SERVICES                                                                          ,DX NETWORK SERVICES LTD,BA0000296594,752.36,849741385
BIS,The Insolvency Service,07/06/2016,Postage,OFFICIAL RECEIVER SERVICES                                                                          ,DX NETWORK SERVICES LTD,BA0000296594,930.73,849741385
BIS,The Insolvency Service,07/06/2016,Postage,OFFICIAL RECEIVER SERVICES                                                                          ,DX NETWORK SERVICES LTD,BA0000296595,"1,995.00",849741385
BIS,The Insolvency Service,07/06/2016,Postage,OFFICIAL RECEIVER SERVICES                                                                          ,DX NETWORK SERVICES LTD,BA0000296597,120.01,849741385
BIS,The Insolvency Service,16/06/2016,Accommodation,ESTATES,E.ON (LARGE PAYMENTS),BA0000296801,130.62,559097889
BIS,The Insolvency Service,17/06/2016,Accommodation,ESTATES,E.ON (LARGE PAYMENTS),BA0000296825,"3,762.78",559097889
BIS,The Insolvency Service,21/06/2016,Accommodation,OFFICIAL RECEIVER SERVICES                                                                          ,EC GROUP,BA0000296857,400.62,235525471
BIS,The Insolvency Service,21/06/2016,Office Supplies and Services,BUSINESS SERVICES DIRECTORATE                                                                       ,EC GROUP,BA0000296879,163.42,235525471
BIS,The Insolvency Service,08/06/2016,Telecoms,INFORMATION TECHNOLOGY                                                                              ,EE LTD (AIR TIME)                                           ,BA0000296603,"5,853.78",771592016
BIS,The Insolvency Service,24/06/2016,Computer and IT Systems,FINANCE AND COMMERCIAL                                                                              ,EQUIFAX LTD                                                 ,BA0000296999,86.65,
BIS,The Insolvency Service,02/06/2016,Computer and IT Systems,BUSINESS SERVICES DIRECTORATE                                                                       ,EXPERIAN QAS LTD,BA0000296472,"2,334.80",887133593
BIS,The Insolvency Service,02/06/2016,Computer and IT Systems,BUSINESS SERVICES DIRECTORATE                                                                       ,EXPERIAN QAS LTD,BA0000296462,"9,783.60",887133593
BIS,The Insolvency Service,09/06/2016,Computer and IT Systems,BUSINESS SERVICES DIRECTORATE                                                                       ,EXPERIAN QAS LTD,BA0000296653,336.30,887133593
BIS,The Insolvency Service,14/06/2016,Accommodation,ESTATES,F&C REIT ASSET MANAGEMENT PLC,BA0000296710,"70,530.00",209938729
BIS,The Insolvency Service,14/06/2016,Accommodation,ESTATES,F&C REIT ASSET MANAGEMENT PLC,BA0000296710,"21,704.40",209938729
BIS,The Insolvency Service,04/05/2016,Telecoms,BUSINESS SERVICES DIRECTORATE                                                                       ,FASTHOSTS INTERNET,BA0000296747,88.79,
BIS,The Insolvency Service,10/06/2016,Telecoms,BUSINESS SERVICES DIRECTORATE                                                                       ,GAMMA BUSINESS COMMUNICATIONS LTD,BA0000296661,130.86,823820344
BIS,The Insolvency Service,10/06/2016,Telecoms,FINANCE AND COMMERCIAL                                                                              ,GAMMA BUSINESS COMMUNICATIONS LTD,BA0000296661,650.28,823820344
BIS,The Insolvency Service,10/06/2016,Telecoms,INFORMATION TECHNOLOGY                                                                              ,GAMMA BUSINESS COMMUNICATIONS LTD,BA0000296661,237.54,823820344
BIS,The Insolvency Service,10/06/2016,Telecoms,OFFICIAL RECEIVER SERVICES                                                                          ,GAMMA BUSINESS COMMUNICATIONS LTD,BA0000296661,-69.21,823820344
BIS,The Insolvency Service,10/06/2016,Telecoms,OFFICIAL RECEIVER SERVICES                                                                          ,GAMMA BUSINESS COMMUNICATIONS LTD,BA0000296661,51.78,823820344
BIS,The Insolvency Service,10/06/2016,Telecoms,OFFICIAL RECEIVER SERVICES                                                                          ,GAMMA BUSINESS COMMUNICATIONS LTD,BA0000296661,72.98,823820344
BIS,The Insolvency Service,10/06/2016,Telecoms,OFFICIAL RECEIVER SERVICES                                                                          ,GAMMA BUSINESS COMMUNICATIONS LTD,BA0000296661,109.54,823820344
BIS,The Insolvency Service,10/06/2016,Telecoms,OFFICIAL RECEIVER SERVICES                                                                          ,GAMMA BUSINESS COMMUNICATIONS LTD,BA0000296661,117.80,823820344
BIS,The Insolvency Service,10/06/2016,Telecoms,OFFICIAL RECEIVER SERVICES                                                                          ,GAMMA BUSINESS COMMUNICATIONS LTD,BA0000296661,120.65,823820344
BIS,The Insolvency Service,10/06/2016,Telecoms,OFFICIAL RECEIVER SERVICES                                                                          ,GAMMA BUSINESS COMMUNICATIONS LTD,BA0000296661,152.47,823820344
BIS,The Insolvency Service,10/06/2016,Telecoms,OFFICIAL RECEIVER SERVICES                                                                          ,GAMMA BUSINESS COMMUNICATIONS LTD,BA0000296661,156.10,823820344
BIS,The Insolvency Service,10/06/2016,Telecoms,OFFICIAL RECEIVER SERVICES                                                                          ,GAMMA BUSINESS COMMUNICATIONS LTD,BA0000296661,181.56,823820344
BIS,The Insolvency Service,10/06/2016,Telecoms,OFFICIAL RECEIVER SERVICES                                                                          ,GAMMA BUSINESS COMMUNICATIONS LTD,BA0000296661,264.35,823820344
BIS,The Insolvency Service,10/06/2016,Telecoms,OFFICIAL RECEIVER SERVICES                                                                          ,GAMMA BUSINESS COMMUNICATIONS LTD,BA0000296661,396.69,823820344
BIS,The Insolvency Service,03/05/2016,Computer and IT Systems,BUSINESS SERVICES DIRECTORATE                                                                       ,GH GITHUB.COM                                               ,BA0000296747,68.44,
BIS,The Insolvency Service,03/06/2016,Investigation and Enforcement Costs,CUSTOMER AND COMMUNICATIONS                                                                         ,GORKANA GROUP LTD                                           ,BA0000296539,"1,138.53",757158012
BIS,The Insolvency Service,08/07/2016,Investigation and Enforcement Costs,CUSTOMER AND COMMUNICATIONS                                                                         ,GORKANA GROUP LTD                                           ,BA0000296604,-844.70,757158012
BIS,The Insolvency Service,03/06/2016,Legal Costs,P&C - People Relations                                                                              ,GOVERNMENT LEGAL DEPARTMENT                                 ,BA0000296536,185.04,888823066
BIS,The Insolvency Service,06/06/2016,Investigation and Enforcement Costs,INVESTIGATIONS & ENFORCEMENT                                                                        ,GOVERNMENT LEGAL DEPARTMENT                                 ,BA0000296561,300.00,888823066
BIS,The Insolvency Service,06/06/2016,Investigation and Enforcement Costs,INVESTIGATIONS & ENFORCEMENT                                                                        ,GOVERNMENT LEGAL DEPARTMENT                                 ,BA0000296562,544.80,888823066
BIS,The Insolvency Service,06/06/2016,Investigation and Enforcement Costs,INVESTIGATIONS & ENFORCEMENT                                                                        ,GOVERNMENT LEGAL DEPARTMENT                                 ,BA0000296563,540.60,888823066
BIS,The Insolvency Service,07/07/2016,Legal Costs,BUSINESS SERVICES DIRECTORATE                                                                       ,GOVERNMENT LEGAL DEPARTMENT                                 ,BA0000296893,805.44,888823066
BIS,The Insolvency Service,07/07/2016,Investigation and Enforcement Costs,INVESTIGATIONS & ENFORCEMENT                                                                        ,GOVERNMENT LEGAL DEPARTMENT                                 ,BA0000296752,-463.68,888823066
BIS,The Insolvency Service,07/07/2016,Investigation and Enforcement Costs,INVESTIGATIONS & ENFORCEMENT                                                                        ,GOVERNMENT LEGAL DEPARTMENT                                 ,BA0000296773,-463.68,888823066
BIS,The Insolvency Service,07/07/2016,Investigation and Enforcement Costs,INVESTIGATIONS & ENFORCEMENT                                                                        ,GOVERNMENT LEGAL DEPARTMENT                                 ,BA0000296895,51.60,888823066
BIS,The Insolvency Service,09/06/2016,Legal Costs,BUSINESS SERVICES DIRECTORATE                                                                       ,GOVERNMENT LEGAL DEPARTMENT                                 ,BA0000296651,792.96,888823066
BIS,The Insolvency Service,08/06/2016,Investigation and Enforcement Costs,INVESTIGATIONS & ENFORCEMENT                                                                        ,GOWLING WRAGGE LAWRENCE GRAHAM  & CO                        ,BA0000296621,"1,846.00",858698838
BIS,The Insolvency Service,08/06/2016,Investigation and Enforcement Costs,INVESTIGATIONS & ENFORCEMENT                                                                        ,GOWLING WRAGGE LAWRENCE GRAHAM  & CO                        ,BA0000296621,"75,400.28",858698838
BIS,The Insolvency Service,08/06/2016,Investigation and Enforcement Costs,INVESTIGATIONS & ENFORCEMENT                                                                        ,GOWLING WRAGGE LAWRENCE GRAHAM  & CO                        ,BA0000296616,770.00,858698838
BIS,The Insolvency Service,08/06/2016,Investigation and Enforcement Costs,INVESTIGATIONS & ENFORCEMENT                                                                        ,GOWLING WRAGGE LAWRENCE GRAHAM  & CO                        ,BA0000296616,"22,239.66",858698838
BIS,The Insolvency Service,08/06/2016,Investigation and Enforcement Costs,INVESTIGATIONS & ENFORCEMENT                                                                        ,GOWLING WRAGGE LAWRENCE GRAHAM  & CO                        ,BA0000296617,"5,290.00",858698838
BIS,The Insolvency Service,08/06/2016,Investigation and Enforcement Costs,INVESTIGATIONS & ENFORCEMENT                                                                        ,GOWLING WRAGGE LAWRENCE GRAHAM  & CO                        ,BA0000296617,"10,995.36",858698838
BIS,The Insolvency Service,09/06/2016,Investigation and Enforcement Costs,INVESTIGATIONS & ENFORCEMENT                                                                        ,GOWLING WRAGGE LAWRENCE GRAHAM  & CO                        ,BA0000296609,"2,576.10",858698838
BIS,The Insolvency Service,15/06/2016,Investigation and Enforcement Costs,INVESTIGATIONS & ENFORCEMENT                                                                        ,GOWLING WRAGGE LAWRENCE GRAHAM  & CO                        ,BA0000296765,837.40,858698838
BIS,The Insolvency Service,01/07/2016,Accommodation,ESTATES,GVA                                                         ,BA0000297177,"38,463.75",657719590
BIS,The Insolvency Service,01/07/2016,Accommodation,ESTATES,GVA                                                         ,BA0000296730,"-3,535.20",657719590
BIS,The Insolvency Service,01/07/2016,Accommodation,ESTATES,GVA                                                         ,BA0000296731,566.85,657719590
BIS,The Insolvency Service,01/07/2016,Accommodation,ESTATES,GVA                                                         ,BA0000296732,"2,282.71",657719590
BIS,The Insolvency Service,01/07/2016,Accommodation,ESTATES,GVA                                                         ,BA0000297177,"16,933.00",657719590
BIS,The Insolvency Service,02/06/2016,Agency Workers,FINANCE AND COMMERCIAL                                                                              ,HAYS SPECIALIST RECRUITMENT LTD,BA0000296473,"2,820.00",773695871
BIS,The Insolvency Service,09/06/2016,Agency Workers,FINANCE AND COMMERCIAL                                                                              ,HAYS SPECIALIST RECRUITMENT LTD,BA0000296650,564.00,773695871
BIS,The Insolvency Service,21/06/2016,Employee Related Costs,FINANCE AND COMMERCIAL                                                                              ,HAYS SPECIALIST RECRUITMENT LTD,BA0000296874,"4,750.24",773695871
BIS,The Insolvency Service,21/06/2016,Employee Related Costs,FINANCE AND COMMERCIAL                                                                              ,HAYS SPECIALIST RECRUITMENT LTD,BA0000296873,"10,625.74",773695871
BIS,The Insolvency Service,16/06/2016,Accommodation,ESTATES                                                                                             ,HM LAND REGISTRY,BA0000296800,140.63,
BIS,The Insolvency Service,06/06/2016,Investigation and Enforcement Costs,OFFICIAL RECEIVER SERVICES                                                                          ,HMCTS,BA0000296546,480.00,
BIS,The Insolvency Service,06/06/2016,Investigation and Enforcement Costs,OFFICIAL RECEIVER SERVICES                                                                          ,HMCTS,BA0000296547,480.00,
BIS,The Insolvency Service,14/06/2016,Investigation and Enforcement Costs,OFFICIAL RECEIVER SERVICES                                                                          ,HMCTS,BA0000296675,280.00,
BIS,The Insolvency Service,14/06/2016,Investigation and Enforcement Costs,OFFICIAL RECEIVER SERVICES                                                                          ,HMCTS,BA0000296676,480.00,
BIS,The Insolvency Service,16/06/2016,Investigation and Enforcement Costs,INVESTIGATIONS & ENFORCEMENT                                                                        ,HMCTS,BA0000296794,60.00,
BIS,The Insolvency Service,16/06/2016,Investigation and Enforcement Costs,INVESTIGATIONS & ENFORCEMENT                                                                        ,HMCTS,BA0000296796,60.00,
BIS,The Insolvency Service,16/06/2016,Investigation and Enforcement Costs,INVESTIGATIONS & ENFORCEMENT                                                                        ,HMCTS,BA0000296797,60.00,
BIS,The Insolvency Service,21/06/2016,Investigation and Enforcement Costs,OFFICIAL RECEIVER SERVICES                                                                          ,HMCTS,BA0000296845,280.00,
BIS,The Insolvency Service,28/06/2016,Investigation and Enforcement Costs,OFFICIAL RECEIVER SERVICES                                                                          ,HMCTS,BA0000297061,50.00,
BIS,The Insolvency Service,30/06/2016,Investigation and Enforcement Costs,OFFICIAL RECEIVER SERVICES                                                                          ,HMCTS,BA0000297121,280.00,
BIS,The Insolvency Service,16/06/2016,Investigation and Enforcement Costs,INVESTIGATIONS & ENFORCEMENT                                                                        ,HMCTS                                                       ,BA0000296795,60.00,
BIS,The Insolvency Service,21/06/2016,Investigation and Enforcement Costs,OFFICIAL RECEIVER SERVICES                                                                          ,HMCTS                                                       ,BA0000296847,50.00,
BIS,The Insolvency Service,22/06/2016,Accommodation,ESTATES,HMRC,BA0000296911,"18,131.14",888848141
BIS,The Insolvency Service,22/06/2016,Accommodation,ESTATES,HMRC,BA0000296898,"12,591.59",888848141
BIS,The Insolvency Service,22/06/2016,Accommodation,ESTATES,HMRC,BA0000296899,"16,625.12",888848141
BIS,The Insolvency Service,22/06/2016,Accommodation,ESTATES,HMRC,BA0000296911,"3,837.83",888848141
BIS,The Insolvency Service,22/06/2016,Accommodation,ESTATES,HMRC,BA0000296898,"1,198.11",888848141
BIS,The Insolvency Service,22/06/2016,Accommodation,ESTATES,HMRC,BA0000296899,"1,033.71",888848141
BIS,The Insolvency Service,08/06/2016,Investigation and Enforcement Costs,INVESTIGATIONS & ENFORCEMENT                                                                        ,HOWES PERCIVAL,BA0000296612,139.75,119523573
BIS,The Insolvency Service,08/06/2016,Investigation and Enforcement Costs,INVESTIGATIONS & ENFORCEMENT                                                                        ,HOWES PERCIVAL,BA0000296612,"13,818.97",119523573
BIS,The Insolvency Service,08/06/2016,Investigation and Enforcement Costs,INVESTIGATIONS & ENFORCEMENT                                                                        ,HOWES PERCIVAL,BA0000296610,"4,794.00",119523573
BIS,The Insolvency Service,08/06/2016,Investigation and Enforcement Costs,INVESTIGATIONS & ENFORCEMENT                                                                        ,HOWES PERCIVAL,BA0000296615,96.00,119523573
BIS,The Insolvency Service,08/06/2016,Investigation and Enforcement Costs,INVESTIGATIONS & ENFORCEMENT                                                                        ,HOWES PERCIVAL,BA0000296615,"5,716.50",119523573
BIS,The Insolvency Service,08/06/2016,Investigation and Enforcement Costs,INVESTIGATIONS & ENFORCEMENT                                                                        ,HOWES PERCIVAL,BA0000296613,416.84,119523573
BIS,The Insolvency Service,08/06/2016,Investigation and Enforcement Costs,INVESTIGATIONS & ENFORCEMENT                                                                        ,HOWES PERCIVAL,BA0000296614,"3,444.50",119523573
BIS,The Insolvency Service,08/06/2016,Investigation and Enforcement Costs,INVESTIGATIONS & ENFORCEMENT                                                                        ,HOWES PERCIVAL,BA0000296614,"5,280.00",119523573
BIS,The Insolvency Service,15/06/2016,Investigation and Enforcement Costs,INVESTIGATIONS & ENFORCEMENT                                                                        ,HOWES PERCIVAL,BA0000296767,"46,023.38",119523573
BIS,The Insolvency Service,15/06/2016,Investigation and Enforcement Costs,INVESTIGATIONS & ENFORCEMENT                                                                        ,HOWES PERCIVAL,BA0000296768,429.00,119523573
BIS,The Insolvency Service,15/06/2016,Investigation and Enforcement Costs,INVESTIGATIONS & ENFORCEMENT                                                                        ,HOWES PERCIVAL,BA0000296766,"7,506.16",119523573
BIS,The Insolvency Service,09/06/2016,Insolvency Case Related Costs,OFFICIAL RECEIVER SERVICES                                                                          ,HPI LTD,BA0000296632,3.64,942407139
BIS,The Insolvency Service,09/06/2016,Office Supplies and Services,OFFICIAL RECEIVER SERVICES                                                                          ,HPI LTD,BA0000296639,3.64,942407139
BIS,The Insolvency Service,10/06/2016,Insolvency Case Related Costs,OFFICIAL RECEIVER SERVICES                                                                          ,HPI LTD,BA0000296663,3.64,942407139
BIS,The Insolvency Service,15/06/2016,Insolvency Case Related Costs,OFFICIAL RECEIVER SERVICES                                                                          ,HPI LTD,BA0000296782,7.07,942407139
BIS,The Insolvency Service,15/06/2016,Insolvency Case Related Costs,OFFICIAL RECEIVER SERVICES                                                                          ,HPI LTD,BA0000296783,10.91,942407139
BIS,The Insolvency Service,15/06/2016,Insolvency Case Related Costs,OFFICIAL RECEIVER SERVICES                                                                          ,HPI LTD,BA0000296781,133.49,942407139
BIS,The Insolvency Service,21/06/2016,Insolvency Case Related Costs,OFFICIAL RECEIVER SERVICES                                                                          ,HPI LTD,BA0000296851,8.50,942407139
BIS,The Insolvency Service,06/06/2016,Redact Compensation and Losses,Insolvency Case Related Costs ,INSOLVENCY SERVICE,BA0000296548,605.00,
BIS,The Insolvency Service,13/06/2016,Redact Compensation and Losses,Insolvency Case Related Costs ,INSOLVENCY SERVICE,BA0000296671,100.00,
BIS,The Insolvency Service,22/06/2016,Insolvency Case Related Costs,OFFICIAL RECEIVER SERVICES                                                                          ,INSOLVENCY SERVICE,BA0000296901,80.00,
BIS,The Insolvency Service,22/06/2016,Insolvency Case Related Costs,OFFICIAL RECEIVER SERVICES                                                                          ,INSOLVENCY SERVICE,BA0000296902,160.00,
BIS,The Insolvency Service,28/06/2016,Redact Compensation and Losses,Insolvency Case Related Costs ,INSOLVENCY SERVICE,BA0000297071,401.44,
BIS,The Insolvency Service,28/06/2016,Redact Compensation and Losses,Insolvency Case Related Costs ,INSOLVENCY SERVICE,BA0000297079,580.00,
BIS,The Insolvency Service,28/06/2016,Insolvency Case Related Costs,OFFICIAL RECEIVER SERVICES                                                                          ,INSOLVENCY SERVICE,BA0000297068,40.00,
BIS,The Insolvency Service,15/06/2016,Accommodation,ESTATES,JONES LANG LASALLE (AMAS Ltd) - (PROPERTY COSTS ETC),BA0000296734,"16,955.00",244155576
BIS,The Insolvency Service,14/06/2016,Accommodation,ESTATES,JONES LANG LASALLE (CROYDON)                                ,BA0000296735,"58,352.86",
BIS,The Insolvency Service,03/06/2016,Agency Workers,INFORMATION TECHNOLOGY                                                                              ,JUMAR SOLUTIONS LTD                                         ,BA0000296530,"8,424.00",
BIS,The Insolvency Service,03/06/2016,Computer and IT Systems,INFORMATION TECHNOLOGY                                                                              ,JUMAR SOLUTIONS LTD                                         ,BA0000296531,"9,462.00",
BIS,The Insolvency Service,21/06/2016,Translation Costs,OFFICIAL RECEIVER SERVICES                                                                          ,K INTERNATIONAL PLC,BA0000296856,120.00,600413800
BIS,The Insolvency Service,21/06/2016,Investigation and Enforcement Costs,INVESTIGATIONS & ENFORCEMENT                                                                        ,K INTERNATIONAL PLC,BA0000296856,28.35,600413800
BIS,The Insolvency Service,08/06/2016,Training Costs,FINANCE AND COMMERCIAL,KAPLAN FINANCIAL,BA0000296605,73.00,
BIS,The Insolvency Service,22/06/2016,Telecoms,OFFICIAL RECEIVER SERVICES                                                                          ,KCOM GROUP PLC,BA0000296907,-7.34,647235137
BIS,The Insolvency Service,06/06/2016,Computer and IT Systems,INFORMATION TECHNOLOGY                                                                              ,KDS UK LTD,BA0000296558,"2,786.40",776463881
BIS,The Insolvency Service,15/06/2016,Accommodation,ESTATES,KINGSTON UPON HULL CITY COUNCIL,BA0000296784,384.03,
BIS,The Insolvency Service,02/06/2016,Computer and IT Systems,INFORMATION TECHNOLOGY                                                                              ,KYPERA LTD,BA0000296510,"15,000.00",813905437
BIS,The Insolvency Service,10/06/2016,Computer and IT Systems,FINANCE AND COMMERCIAL                                                                              ,KYPERA LTD,BA0000296662,"1,105.85",813905437
BIS,The Insolvency Service,06/06/2016,Agency Workers,INFORMATION TECHNOLOGY                                                                              ,LA INTERNATIONAL COMPUTER CONSULTANTS LTD,BA0000296564,"10,716.00",
BIS,The Insolvency Service,09/06/2016,Agency Workers,INFORMATION TECHNOLOGY                                                                              ,LA INTERNATIONAL COMPUTER CONSULTANTS LTD,BA0000296638,"7,257.60",
BIS,The Insolvency Service,28/06/2016,Agency Workers,INFORMATION TECHNOLOGY                                                                              ,LA INTERNATIONAL COMPUTER CONSULTANTS LTD,BA0000297080,"1,242.00",
BIS,The Insolvency Service,17/06/2016,Accommodation,ESTATES,LAND REGISTRY TELFORD,BA0000296798,"1,105.49",
BIS,The Insolvency Service,14/06/2016,Accommodation,ESTATES,LEEDS CITY COUNCIL,BA0000296736,15.04,
BIS,The Insolvency Service,01/07/2016,Accommodation,ESTATES,MAXET HOUSE PROPERTIES LTD                                  ,BA0000297178,450.00,
BIS,The Insolvency Service,16/06/2016,Accommodation,ESTATES,MAXET HOUSE PROPERTIES LTD                                  ,BA0000296788,450.00,
BIS,The Insolvency Service,29/06/2016,Agency Workers,INFORMATION TECHNOLOGY                                                                              ,METHODS PROFESSIONAL SERVICES LTD                           ,BA0000297108,"11,400.00",859140314
BIS,The Insolvency Service,01/07/2016,Accommodation,ESTATES,MIDDLESBROUGH COUNCIL                                       ,BA0000297176,344.70,734213854
BIS,The Insolvency Service,28/06/2016,Postage,OFFICIAL RECEIVER SERVICES                                                                          ,NATURAL ENGLAND                                             ,BA0000297077,"5,138.10",551065074
BIS,The Insolvency Service,06/06/2016,Office Supplies and Services,BUSINESS SERVICES DIRECTORATE                                                                       ,NEOPOST LIMITED (CONSUMABLES),BA0000296567,58.46,597265489
BIS,The Insolvency Service,01/06/2016,Postage,BUSINESS SERVICES DIRECTORATE                                                                       ,NEOPOST LTD - FRANKING TOP UPS,BA0000296454,800.00,
BIS,The Insolvency Service,01/06/2016,Postage,BUSINESS SERVICES DIRECTORATE                                                                       ,NEOPOST LTD - FRANKING TOP UPS,BA0000296455,800.00,
BIS,The Insolvency Service,01/06/2016,Postage,BUSINESS SERVICES DIRECTORATE                                                                       ,NEOPOST LTD - FRANKING TOP UPS,BA0000296456,800.00,
BIS,The Insolvency Service,01/06/2016,Postage,INFORMATION TECHNOLOGY                                                                              ,NEOPOST LTD - FRANKING TOP UPS,BA0000296454,"5,000.00",
BIS,The Insolvency Service,01/06/2016,Postage,INFORMATION TECHNOLOGY                                                                              ,NEOPOST LTD - FRANKING TOP UPS,BA0000296455,"5,000.00",
BIS,The Insolvency Service,01/06/2016,Postage,OFFICIAL RECEIVER SERVICES                                                                          ,NEOPOST LTD - FRANKING TOP UPS,BA0000296454,200.00,
BIS,The Insolvency Service,01/06/2016,Postage,OFFICIAL RECEIVER SERVICES                                                                          ,NEOPOST LTD - FRANKING TOP UPS,BA0000296454,450.00,
BIS,The Insolvency Service,01/06/2016,Postage,OFFICIAL RECEIVER SERVICES                                                                          ,NEOPOST LTD - FRANKING TOP UPS,BA0000296454,500.00,
BIS,The Insolvency Service,01/06/2016,Postage,OFFICIAL RECEIVER SERVICES                                                                          ,NEOPOST LTD - FRANKING TOP UPS,BA0000296454,600.00,
BIS,The Insolvency Service,01/06/2016,Postage,OFFICIAL RECEIVER SERVICES                                                                          ,NEOPOST LTD - FRANKING TOP UPS,BA0000296455,200.00,
BIS,The Insolvency Service,01/06/2016,Postage,OFFICIAL RECEIVER SERVICES                                                                          ,NEOPOST LTD - FRANKING TOP UPS,BA0000296455,450.00,
BIS,The Insolvency Service,01/06/2016,Postage,OFFICIAL RECEIVER SERVICES                                                                          ,NEOPOST LTD - FRANKING TOP UPS,BA0000296455,500.00,
BIS,The Insolvency Service,01/06/2016,Postage,OFFICIAL RECEIVER SERVICES                                                                          ,NEOPOST LTD - FRANKING TOP UPS,BA0000296455,500.00,
BIS,The Insolvency Service,01/06/2016,Postage,OFFICIAL RECEIVER SERVICES                                                                          ,NEOPOST LTD - FRANKING TOP UPS,BA0000296455,"1,000.00",
BIS,The Insolvency Service,01/06/2016,Postage,OFFICIAL RECEIVER SERVICES                                                                          ,NEOPOST LTD - FRANKING TOP UPS,BA0000296455,"1,000.00",
BIS,The Insolvency Service,01/06/2016,Postage,OFFICIAL RECEIVER SERVICES                                                                          ,NEOPOST LTD - FRANKING TOP UPS,BA0000296456,200.00,
BIS,The Insolvency Service,01/06/2016,Postage,OFFICIAL RECEIVER SERVICES                                                                          ,NEOPOST LTD - FRANKING TOP UPS,BA0000296456,450.00,
BIS,The Insolvency Service,01/06/2016,Postage,OFFICIAL RECEIVER SERVICES                                                                          ,NEOPOST LTD - FRANKING TOP UPS,BA0000296456,500.00,
BIS,The Insolvency Service,01/06/2016,Postage,OFFICIAL RECEIVER SERVICES                                                                          ,NEOPOST LTD - FRANKING TOP UPS,BA0000296456,500.00,
BIS,The Insolvency Service,01/06/2016,Postage,OFFICIAL RECEIVER SERVICES                                                                          ,NEOPOST LTD - FRANKING TOP UPS,BA0000296456,500.00,
BIS,The Insolvency Service,01/06/2016,Postage,OFFICIAL RECEIVER SERVICES                                                                          ,NEOPOST LTD - FRANKING TOP UPS,BA0000296456,950.00,
BIS,The Insolvency Service,01/06/2016,Postage,OFFICIAL RECEIVER SERVICES                                                                          ,NEOPOST LTD - FRANKING TOP UPS,BA0000296456,"1,000.00",
BIS,The Insolvency Service,01/06/2016,Postage,OFFICIAL RECEIVER SERVICES                                                                          ,NEOPOST LTD - FRANKING TOP UPS,BA0000296456,"1,000.00",
BIS,The Insolvency Service,01/06/2016,Postage,OFFICIAL RECEIVER SERVICES                                                                          ,NEOPOST LTD - FRANKING TOP UPS,BA0000296456,"1,000.00",
BIS,The Insolvency Service,24/06/2016,Postage,BUSINESS SERVICES DIRECTORATE                                                                       ,NEOPOST LTD - FRANKING TOP UPS,BA0000296935,800.00,
BIS,The Insolvency Service,24/06/2016,Postage,BUSINESS SERVICES DIRECTORATE                                                                       ,NEOPOST LTD - FRANKING TOP UPS,BA0000297000,800.00,
BIS,The Insolvency Service,24/06/2016,Postage,BUSINESS SERVICES DIRECTORATE                                                                       ,NEOPOST LTD - FRANKING TOP UPS,BA0000297001,800.00,
BIS,The Insolvency Service,24/06/2016,Postage,BUSINESS SERVICES DIRECTORATE                                                                       ,NEOPOST LTD - FRANKING TOP UPS,BA0000297002,800.00,
BIS,The Insolvency Service,24/06/2016,Postage,INFORMATION TECHNOLOGY                                                                              ,NEOPOST LTD - FRANKING TOP UPS,BA0000296935,"5,000.00",
BIS,The Insolvency Service,24/06/2016,Postage,INFORMATION TECHNOLOGY                                                                              ,NEOPOST LTD - FRANKING TOP UPS,BA0000297001,"5,000.00",
BIS,The Insolvency Service,24/06/2016,Postage,OFFICIAL RECEIVER SERVICES                                                                          ,NEOPOST LTD - FRANKING TOP UPS,BA0000296935,200.00,
BIS,The Insolvency Service,24/06/2016,Postage,OFFICIAL RECEIVER SERVICES                                                                          ,NEOPOST LTD - FRANKING TOP UPS,BA0000296935,450.00,
BIS,The Insolvency Service,24/06/2016,Postage,OFFICIAL RECEIVER SERVICES                                                                          ,NEOPOST LTD - FRANKING TOP UPS,BA0000296935,500.00,
BIS,The Insolvency Service,24/06/2016,Postage,OFFICIAL RECEIVER SERVICES                                                                          ,NEOPOST LTD - FRANKING TOP UPS,BA0000296935,500.00,
BIS,The Insolvency Service,24/06/2016,Postage,OFFICIAL RECEIVER SERVICES                                                                          ,NEOPOST LTD - FRANKING TOP UPS,BA0000296935,600.00,
BIS,The Insolvency Service,24/06/2016,Postage,OFFICIAL RECEIVER SERVICES                                                                          ,NEOPOST LTD - FRANKING TOP UPS,BA0000296935,700.00,
BIS,The Insolvency Service,24/06/2016,Postage,OFFICIAL RECEIVER SERVICES                                                                          ,NEOPOST LTD - FRANKING TOP UPS,BA0000296935,"1,000.00",
BIS,The Insolvency Service,24/06/2016,Postage,OFFICIAL RECEIVER SERVICES                                                                          ,NEOPOST LTD - FRANKING TOP UPS,BA0000297000,200.00,
BIS,The Insolvency Service,24/06/2016,Postage,OFFICIAL RECEIVER SERVICES                                                                          ,NEOPOST LTD - FRANKING TOP UPS,BA0000297000,500.00,
BIS,The Insolvency Service,24/06/2016,Postage,OFFICIAL RECEIVER SERVICES                                                                          ,NEOPOST LTD - FRANKING TOP UPS,BA0000297000,600.00,
BIS,The Insolvency Service,24/06/2016,Postage,OFFICIAL RECEIVER SERVICES                                                                          ,NEOPOST LTD - FRANKING TOP UPS,BA0000297000,700.00,
BIS,The Insolvency Service,24/06/2016,Postage,OFFICIAL RECEIVER SERVICES                                                                          ,NEOPOST LTD - FRANKING TOP UPS,BA0000297001,200.00,
BIS,The Insolvency Service,24/06/2016,Postage,OFFICIAL RECEIVER SERVICES                                                                          ,NEOPOST LTD - FRANKING TOP UPS,BA0000297001,450.00,
BIS,The Insolvency Service,24/06/2016,Postage,OFFICIAL RECEIVER SERVICES                                                                          ,NEOPOST LTD - FRANKING TOP UPS,BA0000297001,500.00,
BIS,The Insolvency Service,24/06/2016,Postage,OFFICIAL RECEIVER SERVICES                                                                          ,NEOPOST LTD - FRANKING TOP UPS,BA0000297001,500.00,
BIS,The Insolvency Service,24/06/2016,Postage,OFFICIAL RECEIVER SERVICES                                                                          ,NEOPOST LTD - FRANKING TOP UPS,BA0000297001,500.00,
BIS,The Insolvency Service,24/06/2016,Postage,OFFICIAL RECEIVER SERVICES                                                                          ,NEOPOST LTD - FRANKING TOP UPS,BA0000297001,"1,000.00",
BIS,The Insolvency Service,24/06/2016,Postage,OFFICIAL RECEIVER SERVICES                                                                          ,NEOPOST LTD - FRANKING TOP UPS,BA0000297001,"1,000.00",
BIS,The Insolvency Service,24/06/2016,Postage,OFFICIAL RECEIVER SERVICES                                                                          ,NEOPOST LTD - FRANKING TOP UPS,BA0000297001,"1,000.00",
BIS,The Insolvency Service,24/06/2016,Postage,OFFICIAL RECEIVER SERVICES                                                                          ,NEOPOST LTD - FRANKING TOP UPS,BA0000297002,200.00,
BIS,The Insolvency Service,24/06/2016,Postage,OFFICIAL RECEIVER SERVICES                                                                          ,NEOPOST LTD - FRANKING TOP UPS,BA0000297002,500.00,
BIS,The Insolvency Service,24/06/2016,Postage,OFFICIAL RECEIVER SERVICES                                                                          ,NEOPOST LTD - FRANKING TOP UPS,BA0000297002,500.00,
BIS,The Insolvency Service,24/06/2016,Postage,OFFICIAL RECEIVER SERVICES                                                                          ,NEOPOST LTD - FRANKING TOP UPS,BA0000297002,600.00,
BIS,The Insolvency Service,24/06/2016,Postage,OFFICIAL RECEIVER SERVICES                                                                          ,NEOPOST LTD - FRANKING TOP UPS,BA0000297002,700.00,
BIS,The Insolvency Service,24/06/2016,Postage,OFFICIAL RECEIVER SERVICES                                                                          ,NEOPOST LTD - FRANKING TOP UPS,BA0000297002,"1,000.00",
BIS,The Insolvency Service,24/06/2016,Postage,OFFICIAL RECEIVER SERVICES                                                                          ,NEOPOST LTD - FRANKING TOP UPS,BA0000297002,"1,000.00",
BIS,The Insolvency Service,24/06/2016,Postage,OFFICIAL RECEIVER SERVICES                                                                          ,NEOPOST LTD - FRANKING TOP UPS,BA0000297002,"1,000.00",
BIS,The Insolvency Service,28/06/2016,Postage,BUSINESS SERVICES DIRECTORATE                                                                       ,NEOPOST LTD - FRANKING TOP UPS,BA0000297066,800.00,
BIS,The Insolvency Service,28/06/2016,Postage,OFFICIAL RECEIVER SERVICES                                                                          ,NEOPOST LTD - FRANKING TOP UPS,BA0000297066,200.00,
BIS,The Insolvency Service,28/06/2016,Postage,OFFICIAL RECEIVER SERVICES                                                                          ,NEOPOST LTD - FRANKING TOP UPS,BA0000297066,450.00,
BIS,The Insolvency Service,28/06/2016,Postage,OFFICIAL RECEIVER SERVICES                                                                          ,NEOPOST LTD - FRANKING TOP UPS,BA0000297066,500.00,
BIS,The Insolvency Service,28/06/2016,Postage,OFFICIAL RECEIVER SERVICES                                                                          ,NEOPOST LTD - FRANKING TOP UPS,BA0000297066,950.00,
BIS,The Insolvency Service,28/06/2016,Postage,OFFICIAL RECEIVER SERVICES                                                                          ,NEOPOST LTD - FRANKING TOP UPS,BA0000297066,"1,000.00",
BIS,The Insolvency Service,09/06/2016,Computer and IT Systems,INFORMATION TECHNOLOGY                                                                              ,NINE TELECOM,BA0000296631,221.52,886132113
BIS,The Insolvency Service,17/06/2016,Computer and IT Systems,INFORMATION TECHNOLOGY                                                                              ,NINE TELECOM,BA0000296827,732.60,886132113
BIS,The Insolvency Service,16/06/2016,Accommodation,ESTATES,NORTHAMPTONSHIRE COUNTY COUNCIL,BA0000296789,301.00,
BIS,The Insolvency Service,23/06/2016,Employee Related Costs,PEOPLE & CAPABILITY                                                                                 ,ONLINE ERGONOMICS,BA0000296949,11.50,807348719
BIS,The Insolvency Service,23/06/2016,Employee Related Costs,PEOPLE & CAPABILITY                                                                                 ,ONLINE ERGONOMICS,BA0000296949,40.00,807348719
BIS,The Insolvency Service,23/06/2016,Employee Related Costs,PEOPLE & CAPABILITY                                                                                 ,ONLINE ERGONOMICS,BA0000296950,-40.00,807348719
BIS,The Insolvency Service,23/06/2016,Employee Related Costs,PEOPLE & CAPABILITY                                                                                 ,ONLINE ERGONOMICS,BA0000296951,-40.00,807348719
BIS,The Insolvency Service,23/06/2016,Employee Related Costs,PEOPLE & CAPABILITY                                                                                 ,ONLINE ERGONOMICS,BA0000296952,11.50,807348719
BIS,The Insolvency Service,23/06/2016,Employee Related Costs,PEOPLE & CAPABILITY                                                                                 ,ONLINE ERGONOMICS,BA0000296952,40.00,807348719
BIS,The Insolvency Service,24/06/2016,Employee Related Costs,BUSINESS SERVICES DIRECTORATE                                                                       ,ONLINE ERGONOMICS,BA0000296998,677.52,807348719
BIS,The Insolvency Service,14/06/2016,Accommodation,ESTATES,OPTIC ASSET MANAGEMENT LTD (RENT)                           ,BA0000296711,276.17,
BIS,The Insolvency Service,14/06/2016,Accommodation,ESTATES,OPTIC ASSET MANAGEMENT LTD (RENT)                           ,BA0000296712,"12,026.96",
BIS,The Insolvency Service,14/06/2016,Accommodation,ESTATES,OPTIC ASSET MANAGEMENT LTD (RENT)                           ,BA0000296733,"8,202.08",
BIS,The Insolvency Service,14/06/2016,Accommodation,ESTATES,OPTIC ASSET MANAGEMENT LTD (RENT)                           ,BA0000296712,"4,573.23",
BIS,The Insolvency Service,14/06/2016,Accommodation,ESTATES,OPTIC ASSET MANAGEMENT LTD (RENT)                           ,BA0000296733,"2,829.10",
BIS,The Insolvency Service,21/05/2016,Travel and Subsistence,EXTERNAL AFFAIRS                                                                                    ,OYSTER AUTO TOP UP,BA0000296747,20.00,
BIS,The Insolvency Service,21/06/2016,Postage,ESTATES,PARCELFORCE WORLDWIDE,BA0000296859,5.99,243170002
BIS,The Insolvency Service,21/06/2016,Postage,OFFICIAL RECEIVER SERVICES                                                                          ,PARCELFORCE WORLDWIDE,BA0000296859,13.32,243170002
BIS,The Insolvency Service,21/06/2016,Postage,OFFICIAL RECEIVER SERVICES                                                                          ,PARCELFORCE WORLDWIDE,BA0000296859,15.50,243170002
BIS,The Insolvency Service,21/06/2016,Postage,OFFICIAL RECEIVER SERVICES                                                                          ,PARCELFORCE WORLDWIDE,BA0000296859,17.18,243170002
BIS,The Insolvency Service,21/06/2016,Postage,OFFICIAL RECEIVER SERVICES                                                                          ,PARCELFORCE WORLDWIDE,BA0000296859,44.17,243170002
BIS,The Insolvency Service,21/06/2016,Postage,OFFICIAL RECEIVER SERVICES                                                                          ,PARCELFORCE WORLDWIDE,BA0000296859,71.92,243170002
BIS,The Insolvency Service,21/06/2016,Postage,OFFICIAL RECEIVER SERVICES                                                                          ,PARCELFORCE WORLDWIDE,BA0000296859,81.49,243170002
BIS,The Insolvency Service,28/06/2016,Training Costs,PEOPLE & CAPABILITY                                                                                 ,PERCEPTION DYNAMICS                                         ,BA0000297070,455.00,
BIS,The Insolvency Service,15/06/2016,Secretariat Costs,CUSTOMER AND COMMUNICATIONS                                                                         ,POPULUS                                                     ,BA0000296777,"38,460.00",
BIS,The Insolvency Service,01/07/2016,Employee Related Costs,BUSINESS SERVICES DIRECTORATE                                                                       ,POSTURITE (UK) LTD.,BA0000297170,744.56,
BIS,The Insolvency Service,24/06/2016,Employee Related Costs,BUSINESS SERVICES DIRECTORATE                                                                       ,POSTURITE (UK) LTD.,BA0000297003,613.44,
BIS,The Insolvency Service,15/06/2016,Training Costs,INFORMATION TECHNOLOGY                                                                              ,QA LIMITED,BA0000296502,252.50,
BIS,The Insolvency Service,15/06/2016,Training Costs,PEOPLE & CAPABILITY                                                                                 ,QA LIMITED,BA0000296775,"1,505.40",
BIS,The Insolvency Service,22/06/2016,Training Costs,FINANCE AND COMMERCIAL,REDACTIVE EVENTS                                            ,BA0000296892,795.00,805787404
BIS,The Insolvency Service,01/07/2016,Agency Workers,INFORMATION TECHNOLOGY                                                                              ,REDROCK CONSULTING LTD                                      ,BA0000297167,"8,895.60",
BIS,The Insolvency Service,01/07/2016,Agency Workers,INFORMATION TECHNOLOGY                                                                              ,REDROCK CONSULTING LTD                                      ,BA0000297168,"4,200.00",
BIS,The Insolvency Service,02/06/2016,Agency Workers,INFORMATION TECHNOLOGY                                                                              ,REDROCK CONSULTING LTD                                      ,BA0000296475,"14,752.74",
BIS,The Insolvency Service,02/06/2016,Agency Workers,INFORMATION TECHNOLOGY                                                                              ,REDROCK CONSULTING LTD                                      ,BA0000296476,"3,000.00",
BIS,The Insolvency Service,02/06/2016,Agency Workers,INFORMATION TECHNOLOGY                                                                              ,REDROCK CONSULTING LTD                                      ,BA0000296477,"3,177.00",
BIS,The Insolvency Service,02/06/2016,Agency Workers,INFORMATION TECHNOLOGY                                                                              ,REDROCK CONSULTING LTD                                      ,BA0000296478,"2,823.60",
BIS,The Insolvency Service,09/06/2016,Agency Workers,INFORMATION TECHNOLOGY                                                                              ,REDROCK CONSULTING LTD                                      ,BA0000296633,"2,258.88",
BIS,The Insolvency Service,09/06/2016,Agency Workers,INFORMATION TECHNOLOGY                                                                              ,REDROCK CONSULTING LTD                                      ,BA0000296634,"2,541.60",
BIS,The Insolvency Service,09/06/2016,Agency Workers,INFORMATION TECHNOLOGY                                                                              ,REDROCK CONSULTING LTD                                      ,BA0000296635,"2,400.00",
BIS,The Insolvency Service,16/06/2016,Agency Workers,INFORMATION TECHNOLOGY                                                                              ,REDROCK CONSULTING LTD                                      ,BA0000296802,"6,988.14",
BIS,The Insolvency Service,16/06/2016,Agency Workers,INFORMATION TECHNOLOGY                                                                              ,REDROCK CONSULTING LTD                                      ,BA0000296803,"3,177.00",
BIS,The Insolvency Service,16/06/2016,Agency Workers,INFORMATION TECHNOLOGY                                                                              ,REDROCK CONSULTING LTD                                      ,BA0000296805,"2,823.60",
BIS,The Insolvency Service,23/06/2016,Agency Workers,INFORMATION TECHNOLOGY                                                                              ,REDROCK CONSULTING LTD                                      ,BA0000296953,"2,823.60",
BIS,The Insolvency Service,23/06/2016,Agency Workers,INFORMATION TECHNOLOGY                                                                              ,REDROCK CONSULTING LTD                                      ,BA0000296954,"3,600.00",
BIS,The Insolvency Service,10/06/2016,Employee Related Costs,P&C - People Relations                                                                              ,RIGHT CORECARE Ltd                                          ,BA0000296666,485.44,
BIS,The Insolvency Service,10/06/2016,Employee Related Costs,P&C - People Relations                                                                              ,RIGHT CORECARE Ltd                                          ,BA0000296667,523.50,
BIS,The Insolvency Service,08/06/2016,Postage,OFFICIAL RECEIVER SERVICES                                                                          ,ROYAL MAIL GROUP LTD,BA0000296606,100.00,243170002
BIS,The Insolvency Service,08/06/2016,Accommodation,OFFICIAL RECEIVER SERVICES                                                                          ,SCOTTISH POWER,BA0000296608,794.68,659372008
BIS,The Insolvency Service,14/06/2016,Accommodation,ESTATES,SCOTTISH POWER,BA0000296737,651.11,659372008
BIS,The Insolvency Service,29/06/2016,Employee Related Costs,PEOPLE & CAPABILITY                                                                                 ,SHAPE POSTURE SEATING,BA0000297107,698.58,173015394
BIS,The Insolvency Service,24/06/2016,Investigation and Enforcement Costs,INVESTIGATIONS & ENFORCEMENT                                                                        ,SHEPHERD & WEDDERBURN WS (ENGLISH CASES)                    ,BA0000297006,326.40,890559386
BIS,The Insolvency Service,24/06/2016,Investigation and Enforcement Costs,INVESTIGATIONS & ENFORCEMENT                                                                        ,SHEPHERD & WEDDERBURN WS (ENGLISH CASES)                    ,BA0000297006,480.00,890559386
BIS,The Insolvency Service,24/06/2016,Investigation and Enforcement Costs,INVESTIGATIONS & ENFORCEMENT                                                                        ,SHEPHERD & WEDDERBURN WS (ENGLISH CASES)                    ,BA0000297006,"21,578.19",890559386
BIS,The Insolvency Service,24/06/2016,Investigation and Enforcement Costs,INVESTIGATIONS & ENFORCEMENT                                                                        ,SHEPHERD & WEDDERBURN WS (ENGLISH CASES)                    ,BA0000297006,127.00,890559386
BIS,The Insolvency Service,24/06/2016,Investigation and Enforcement Costs,INVESTIGATIONS & ENFORCEMENT                                                                        ,SHEPHERD & WEDDERBURN WS (ENGLISH CASES)                    ,BA0000297006,"2,208.40",890559386
BIS,The Insolvency Service,24/06/2016,Investigation and Enforcement Costs,INVESTIGATIONS & ENFORCEMENT                                                                        ,SHEPHERD & WEDDERBURN WS (ENGLISH CASES)                    ,BA0000297006,20.25,890559386
BIS,The Insolvency Service,24/06/2016,Investigation and Enforcement Costs,INVESTIGATIONS & ENFORCEMENT                                                                        ,SHEPHERD & WEDDERBURN WS (ENGLISH CASES)                    ,BA0000297006,"9,317.11",890559386
BIS,The Insolvency Service,08/06/2016,Investigation and Enforcement Costs,INVESTIGATIONS & ENFORCEMENT                                                                        ,SHEPHERD & WEDDERBURN WS (SCOTTISH CASES)                   ,BA0000296620,420.00,890559386
BIS,The Insolvency Service,08/06/2016,Investigation and Enforcement Costs,INVESTIGATIONS & ENFORCEMENT                                                                        ,SHEPHERD & WEDDERBURN WS (SCOTTISH CASES)                   ,BA0000296620,729.00,890559386
BIS,The Insolvency Service,08/06/2016,Investigation and Enforcement Costs,INVESTIGATIONS & ENFORCEMENT                                                                        ,SHEPHERD & WEDDERBURN WS (SCOTTISH CASES)                   ,BA0000296620,"12,692.41",890559386
BIS,The Insolvency Service,08/06/2016,Investigation and Enforcement Costs,INVESTIGATIONS & ENFORCEMENT                                                                        ,SHEPHERD & WEDDERBURN WS (SCOTTISH CASES)                   ,BA0000296620,"1,637.74",890559386
BIS,The Insolvency Service,08/06/2016,Investigation and Enforcement Costs,INVESTIGATIONS & ENFORCEMENT                                                                        ,SHEPHERD & WEDDERBURN WS (SCOTTISH CASES)                   ,BA0000296620,"2,153.80",890559386
BIS,The Insolvency Service,02/06/2016,Insolvency Case Related Costs,FINANCE AND COMMERCIAL                                                                              ,SIRS (EUROPE) LTD,BA0000296517,"12,750.00",990834974
BIS,The Insolvency Service,06/06/2016,Computer and IT Systems,BUSINESS SERVICES DIRECTORATE                                                                       ,SKYSCAPE CLOUD SERVICES                                     ,BA0000296568,"4,865.27",122134958
BIS,The Insolvency Service,21/06/2016,Conferences,BUSINESS SERVICES DIRECTORATE                                                                       ,ST MATTHEWS WESTMINSTER                                     ,BA0000296855,486.00,736148330
BIS,The Insolvency Service,01/06/2016,Travel and Subsistence,PEOPLE & CAPABILITY                                                                                 ,Staff Payment,BA0000296459,7.00,
BIS,The Insolvency Service,01/06/2016,Travel and Subsistence,INVESTIGATIONS & ENFORCEMENT                                                                        ,Staff Payment,BA0000296459,5.00,
BIS,The Insolvency Service,01/06/2016,Telecoms,INVESTIGATIONS & ENFORCEMENT                                                                        ,Staff Payment,BA0000296459,99.14,
BIS,The Insolvency Service,01/06/2016,Telecoms,INVESTIGATIONS & ENFORCEMENT                                                                        ,Staff Payment,BA0000296459,65.19,
BIS,The Insolvency Service,01/06/2016,Travel and Subsistence,PEOPLE & CAPABILITY                                                                                 ,Staff Payment,BA0000296459,62.00,
BIS,The Insolvency Service,01/06/2016,Travel and Subsistence,BUSINESS SERVICES DIRECTORATE                                                                       ,Staff Payment,BA0000296459,7.20,
BIS,The Insolvency Service,01/06/2016,Travel and Subsistence,BUSINESS SERVICES DIRECTORATE                                                                       ,Staff Payment,BA0000296459,4.50,
BIS,The Insolvency Service,01/06/2016,Travel and Subsistence,EXTERNAL AFFAIRS                                                                                    ,Staff Payment,BA0000296459,47.80,
BIS,The Insolvency Service,01/06/2016,Travel and Subsistence,INVESTIGATIONS & ENFORCEMENT                                                                        ,Staff Payment,BA0000296459,24.30,
BIS,The Insolvency Service,01/06/2016,Travel and Subsistence,INVESTIGATIONS & ENFORCEMENT                                                                        ,Staff Payment,BA0000296459,4.70,
BIS,The Insolvency Service,01/06/2016,Travel and Subsistence,OFFICIAL RECEIVER SERVICES                                                                          ,Staff Payment,BA0000296459,170.00,
BIS,The Insolvency Service,01/06/2016,Travel and Subsistence,OFFICIAL RECEIVER SERVICES                                                                          ,Staff Payment,BA0000296459,4.80,
BIS,The Insolvency Service,01/06/2016,Travel and Subsistence,BUSINESS SERVICES DIRECTORATE                                                                       ,Staff Payment,BA0000296459,14.20,
BIS,The Insolvency Service,01/06/2016,Travel and Subsistence,BUSINESS SERVICES DIRECTORATE                                                                       ,Staff Payment,BA0000296459,192.00,
BIS,The Insolvency Service,01/06/2016,Travel and Subsistence,BUSINESS SERVICES DIRECTORATE                                                                       ,Staff Payment,BA0000296459,3.66,
BIS,The Insolvency Service,01/06/2016,Travel and Subsistence,BUSINESS SERVICES DIRECTORATE                                                                       ,Staff Payment,BA0000296459,97.00,
BIS,The Insolvency Service,01/06/2016,Travel and Subsistence,BUSINESS SERVICES DIRECTORATE                                                                       ,Staff Payment,BA0000296459,46.32,
BIS,The Insolvency Service,01/06/2016,Travel and Subsistence,BUSINESS SERVICES DIRECTORATE                                                                       ,Staff Payment,BA0000296459,13.00,
BIS,The Insolvency Service,01/06/2016,Travel and Subsistence,INVESTIGATIONS & ENFORCEMENT                                                                        ,Staff Payment,BA0000296459,44.00,
BIS,The Insolvency Service,01/06/2016,Travel and Subsistence,INVESTIGATIONS & ENFORCEMENT                                                                        ,Staff Payment,BA0000296459,31.50,
BIS,The Insolvency Service,01/06/2016,Travel and Subsistence,INVESTIGATIONS & ENFORCEMENT                                                                        ,Staff Payment,BA0000296459,35.00,
BIS,The Insolvency Service,01/06/2016,Travel and Subsistence,INVESTIGATIONS & ENFORCEMENT                                                                        ,Staff Payment,BA0000296459,5.00,
BIS,The Insolvency Service,01/06/2016,Travel and Subsistence,INVESTIGATIONS & ENFORCEMENT                                                                        ,Staff Payment,BA0000296459,18.90,
BIS,The Insolvency Service,01/06/2016,Travel and Subsistence,INVESTIGATIONS & ENFORCEMENT                                                                        ,Staff Payment,BA0000296459,79.30,
BIS,The Insolvency Service,01/06/2016,Travel and Subsistence,OFFICIAL RECEIVER SERVICES                                                                          ,Staff Payment,BA0000296459,5.20,
BIS,The Insolvency Service,01/06/2016,Travel and Subsistence,OFFICIAL RECEIVER SERVICES                                                                          ,Staff Payment,BA0000296459,9.50,
BIS,The Insolvency Service,01/06/2016,Travel and Subsistence,OFFICIAL RECEIVER SERVICES                                                                          ,Staff Payment,BA0000296459,45.45,
BIS,The Insolvency Service,01/06/2016,Travel and Subsistence,OFFICIAL RECEIVER SERVICES                                                                          ,Staff Payment,BA0000296459,1.50,
BIS,The Insolvency Service,01/06/2016,Travel and Subsistence,OFFICIAL RECEIVER SERVICES                                                                          ,Staff Payment,BA0000296459,1.80,
BIS,The Insolvency Service,01/06/2016,Travel and Subsistence,OFFICIAL RECEIVER SERVICES                                                                          ,Staff Payment,BA0000296459,17.50,
BIS,The Insolvency Service,01/06/2016,Travel and Subsistence,OFFICIAL RECEIVER SERVICES                                                                          ,Staff Payment,BA0000296459,8.00,
BIS,The Insolvency Service,01/06/2016,Travel and Subsistence,OFFICIAL RECEIVER SERVICES                                                                          ,Staff Payment,BA0000296459,15.30,
BIS,The Insolvency Service,01/06/2016,Travel and Subsistence,OFFICIAL RECEIVER SERVICES                                                                          ,Staff Payment,BA0000296459,5.00,
BIS,The Insolvency Service,01/06/2016,Travel and Subsistence,OFFICIAL RECEIVER SERVICES                                                                          ,Staff Payment,BA0000296459,8.60,
BIS,The Insolvency Service,01/06/2016,Travel and Subsistence,OFFICIAL RECEIVER SERVICES                                                                          ,Staff Payment,BA0000296459,40.50,
BIS,The Insolvency Service,01/06/2016,Travel and Subsistence,OFFICIAL RECEIVER SERVICES                                                                          ,Staff Payment,BA0000296459,2.50,
BIS,The Insolvency Service,01/06/2016,Travel and Subsistence,OFFICIAL RECEIVER SERVICES                                                                          ,Staff Payment,BA0000296459,27.90,
BIS,The Insolvency Service,01/06/2016,Travel and Subsistence,OFFICIAL RECEIVER SERVICES                                                                          ,Staff Payment,BA0000296459,9.50,
BIS,The Insolvency Service,01/06/2016,Travel and Subsistence,OFFICIAL RECEIVER SERVICES                                                                          ,Staff Payment,BA0000296459,9.00,
BIS,The Insolvency Service,01/06/2016,Travel and Subsistence,OFFICIAL RECEIVER SERVICES                                                                          ,Staff Payment,BA0000296459,53.50,
BIS,The Insolvency Service,01/06/2016,Travel and Subsistence,OFFICIAL RECEIVER SERVICES                                                                          ,Staff Payment,BA0000296459,56.25,
BIS,The Insolvency Service,01/06/2016,Travel and Subsistence,OFFICIAL RECEIVER SERVICES                                                                          ,Staff Payment,BA0000296459,3.00,
BIS,The Insolvency Service,01/06/2016,Travel and Subsistence,OFFICIAL RECEIVER SERVICES                                                                          ,Staff Payment,BA0000296459,27.00,
BIS,The Insolvency Service,01/06/2016,Travel and Subsistence,OFFICIAL RECEIVER SERVICES                                                                          ,Staff Payment,BA0000296459,52.20,
BIS,The Insolvency Service,01/06/2016,Travel and Subsistence,OFFICIAL RECEIVER SERVICES                                                                          ,Staff Payment,BA0000296459,7.30,
BIS,The Insolvency Service,01/06/2016,Travel and Subsistence,OFFICIAL RECEIVER SERVICES                                                                          ,Staff Payment,BA0000296459,3.00,
BIS,The Insolvency Service,01/06/2016,Travel and Subsistence,OFFICIAL RECEIVER SERVICES                                                                          ,Staff Payment,BA0000296459,20.00,
BIS,The Insolvency Service,01/06/2016,Travel and Subsistence,PEOPLE & CAPABILITY                                                                                 ,Staff Payment,BA0000296459,18.00,
BIS,The Insolvency Service,01/06/2016,Travel and Subsistence,PEOPLE & CAPABILITY                                                                                 ,Staff Payment,BA0000296459,18.00,
BIS,The Insolvency Service,01/06/2016,Travel and Subsistence,PEOPLE & CAPABILITY                                                                                 ,Staff Payment,BA0000296459,18.00,
BIS,The Insolvency Service,01/06/2016,Travel and Subsistence,PEOPLE & CAPABILITY                                                                                 ,Staff Payment,BA0000296459,18.00,
BIS,The Insolvency Service,01/06/2016,Travel and Subsistence,PEOPLE & CAPABILITY                                                                                 ,Staff Payment,BA0000296459,18.00,
BIS,The Insolvency Service,01/06/2016,Travel and Subsistence,PEOPLE & CAPABILITY                                                                                 ,Staff Payment,BA0000296459,18.00,
BIS,The Insolvency Service,01/06/2016,Travel and Subsistence,OFFICIAL RECEIVER SERVICES                                                                          ,Staff Payment,BA0000296459,10.00,
BIS,The Insolvency Service,01/06/2016,Travel and Subsistence,OFFICIAL RECEIVER SERVICES                                                                          ,Staff Payment,BA0000296459,25.80,
BIS,The Insolvency Service,01/06/2016,Travel and Subsistence,PEOPLE & CAPABILITY                                                                                 ,Staff Payment,BA0000296459,3.40,
BIS,The Insolvency Service,01/06/2016,Travel and Subsistence,PEOPLE & CAPABILITY                                                                                 ,Staff Payment,BA0000296459,12.40,
BIS,The Insolvency Service,01/06/2016,Travel and Subsistence,BUSINESS SERVICES DIRECTORATE                                                                       ,Staff Payment,BA0000296459,17.39,
BIS,The Insolvency Service,01/06/2016,Travel and Subsistence,BUSINESS SERVICES DIRECTORATE                                                                       ,Staff Payment,BA0000296459,24.24,
BIS,The Insolvency Service,01/06/2016,Travel and Subsistence,BUSINESS SERVICES DIRECTORATE                                                                       ,Staff Payment,BA0000296459,23.05,
BIS,The Insolvency Service,01/06/2016,Travel and Subsistence,BUSINESS SERVICES DIRECTORATE                                                                       ,Staff Payment,BA0000296459,5.00,
BIS,The Insolvency Service,01/06/2016,Travel and Subsistence,BUSINESS SERVICES DIRECTORATE                                                                       ,Staff Payment,BA0000296459,25.00,
BIS,The Insolvency Service,01/06/2016,Travel and Subsistence,INVESTIGATIONS & ENFORCEMENT                                                                        ,Staff Payment,BA0000296459,14.10,
BIS,The Insolvency Service,01/06/2016,Travel and Subsistence,INVESTIGATIONS & ENFORCEMENT                                                                        ,Staff Payment,BA0000296459,18.24,
BIS,The Insolvency Service,01/06/2016,Travel and Subsistence,INVESTIGATIONS & ENFORCEMENT                                                                        ,Staff Payment,BA0000296459,5.00,
BIS,The Insolvency Service,01/06/2016,Travel and Subsistence,INVESTIGATIONS & ENFORCEMENT                                                                        ,Staff Payment,BA0000296459,7.60,
BIS,The Insolvency Service,01/06/2016,Travel and Subsistence,INVESTIGATIONS & ENFORCEMENT                                                                        ,Staff Payment,BA0000296459,5.00,
BIS,The Insolvency Service,01/06/2016,Travel and Subsistence,INVESTIGATIONS & ENFORCEMENT                                                                        ,Staff Payment,BA0000296459,50.93,
BIS,The Insolvency Service,01/06/2016,Travel and Subsistence,OFFICIAL RECEIVER SERVICES                                                                          ,Staff Payment,BA0000296459,7.49,
BIS,The Insolvency Service,01/06/2016,Travel and Subsistence,OFFICIAL RECEIVER SERVICES                                                                          ,Staff Payment,BA0000296459,8.29,
BIS,The Insolvency Service,01/06/2016,Travel and Subsistence,OFFICIAL RECEIVER SERVICES                                                                          ,Staff Payment,BA0000296459,8.53,
BIS,The Insolvency Service,01/06/2016,Travel and Subsistence,OFFICIAL RECEIVER SERVICES                                                                          ,Staff Payment,BA0000296459,6.99,
BIS,The Insolvency Service,01/06/2016,Travel and Subsistence,OFFICIAL RECEIVER SERVICES                                                                          ,Staff Payment,BA0000296459,5.00,
BIS,The Insolvency Service,01/06/2016,Travel and Subsistence,OFFICIAL RECEIVER SERVICES                                                                          ,Staff Payment,BA0000296459,7.39,
BIS,The Insolvency Service,01/06/2016,Travel and Subsistence,OFFICIAL RECEIVER SERVICES                                                                          ,Staff Payment,BA0000296459,5.00,
BIS,The Insolvency Service,01/06/2016,Travel and Subsistence,OFFICIAL RECEIVER SERVICES                                                                          ,Staff Payment,BA0000296459,3.85,
BIS,The Insolvency Service,01/06/2016,Travel and Subsistence,OFFICIAL RECEIVER SERVICES                                                                          ,Staff Payment,BA0000296459,18.65,
BIS,The Insolvency Service,01/06/2016,Travel and Subsistence,OFFICIAL RECEIVER SERVICES                                                                          ,Staff Payment,BA0000296459,1.20,
BIS,The Insolvency Service,01/06/2016,Travel and Subsistence,OFFICIAL RECEIVER SERVICES                                                                          ,Staff Payment,BA0000296459,3.99,
BIS,The Insolvency Service,01/06/2016,Travel and Subsistence,OFFICIAL RECEIVER SERVICES                                                                          ,Staff Payment,BA0000296459,7.25,
BIS,The Insolvency Service,01/06/2016,Travel and Subsistence,OFFICIAL RECEIVER SERVICES                                                                          ,Staff Payment,BA0000296459,5.00,
BIS,The Insolvency Service,01/06/2016,Travel and Subsistence,PEOPLE & CAPABILITY                                                                                 ,Staff Payment,BA0000296459,26.25,
BIS,The Insolvency Service,01/06/2016,Travel and Subsistence,PEOPLE & CAPABILITY                                                                                 ,Staff Payment,BA0000296459,5.00,
BIS,The Insolvency Service,01/06/2016,Travel and Subsistence,PEOPLE & CAPABILITY                                                                                 ,Staff Payment,BA0000296459,24.89,
BIS,The Insolvency Service,01/06/2016,Travel and Subsistence,PEOPLE & CAPABILITY                                                                                 ,Staff Payment,BA0000296459,30.90,
BIS,The Insolvency Service,01/06/2016,Office Supplies and Services,INVESTIGATIONS & ENFORCEMENT                                                                        ,Staff Payment,BA0000296459,7.50,
BIS,The Insolvency Service,02/06/2016,Travel and Subsistence,INFORMATION TECHNOLOGY                                                                              ,Staff Payment,BA0000296506,4.90,
BIS,The Insolvency Service,02/06/2016,Travel and Subsistence,INFORMATION TECHNOLOGY                                                                              ,Staff Payment,BA0000296506,33.00,
BIS,The Insolvency Service,02/06/2016,Travel and Subsistence,CUSTOMER AND COMMUNICATIONS                                                                         ,Staff Payment,BA0000296506,34.65,
BIS,The Insolvency Service,02/06/2016,Travel and Subsistence,INFORMATION TECHNOLOGY                                                                              ,Staff Payment,BA0000296506,20.00,
BIS,The Insolvency Service,02/06/2016,Employee Related Costs,PEOPLE & CAPABILITY                                                                                 ,Staff Payment,BA0000296506,180.00,
BIS,The Insolvency Service,02/06/2016,Travel and Subsistence,INVESTIGATIONS & ENFORCEMENT                                                                        ,Staff Payment,BA0000296505,4.80,
BIS,The Insolvency Service,02/06/2016,Travel and Subsistence,INVESTIGATIONS & ENFORCEMENT                                                                        ,Staff Payment,BA0000296505,101.90,
BIS,The Insolvency Service,02/06/2016,Travel and Subsistence,INVESTIGATIONS & ENFORCEMENT                                                                        ,Staff Payment,BA0000296505,4.80,
BIS,The Insolvency Service,02/06/2016,Travel and Subsistence,INVESTIGATIONS & ENFORCEMENT                                                                        ,Staff Payment,BA0000296505,4.80,
BIS,The Insolvency Service,02/06/2016,Travel and Subsistence,OFFICIAL RECEIVER SERVICES                                                                          ,Staff Payment,BA0000296506,9.80,
BIS,The Insolvency Service,02/06/2016,Travel and Subsistence,OFFICIAL RECEIVER SERVICES                                                                          ,Staff Payment,BA0000296506,9.80,
BIS,The Insolvency Service,02/06/2016,Travel and Subsistence,BUSINESS SERVICES DIRECTORATE                                                                       ,Staff Payment,BA0000296506,164.70,
BIS,The Insolvency Service,02/06/2016,Travel and Subsistence,BUSINESS SERVICES DIRECTORATE                                                                       ,Staff Payment,BA0000296506,198.90,
BIS,The Insolvency Service,02/06/2016,Travel and Subsistence,INVESTIGATIONS & ENFORCEMENT                                                                        ,Staff Payment,BA0000296505,10.00,
BIS,The Insolvency Service,02/06/2016,Travel and Subsistence,INVESTIGATIONS & ENFORCEMENT                                                                        ,Staff Payment,BA0000296505,10.00,
BIS,The Insolvency Service,02/06/2016,Travel and Subsistence,OFFICIAL RECEIVER SERVICES                                                                          ,Staff Payment,BA0000296506,1.50,
BIS,The Insolvency Service,02/06/2016,Travel and Subsistence,OFFICIAL RECEIVER SERVICES                                                                          ,Staff Payment,BA0000296506,15.30,
BIS,The Insolvency Service,02/06/2016,Travel and Subsistence,OFFICIAL RECEIVER SERVICES                                                                          ,Staff Payment,BA0000296506,1.00,
BIS,The Insolvency Service,02/06/2016,Travel and Subsistence,OFFICIAL RECEIVER SERVICES                                                                          ,Staff Payment,BA0000296506,10.80,
BIS,The Insolvency Service,02/06/2016,Travel and Subsistence,OFFICIAL RECEIVER SERVICES                                                                          ,Staff Payment,BA0000296506,2.00,
BIS,The Insolvency Service,02/06/2016,Travel and Subsistence,OFFICIAL RECEIVER SERVICES                                                                          ,Staff Payment,BA0000296506,22.50,
BIS,The Insolvency Service,02/06/2016,Travel and Subsistence,OFFICIAL RECEIVER SERVICES                                                                          ,Staff Payment,BA0000296506,1.00,
BIS,The Insolvency Service,02/06/2016,Travel and Subsistence,OFFICIAL RECEIVER SERVICES                                                                          ,Staff Payment,BA0000296506,4.50,
BIS,The Insolvency Service,02/06/2016,Travel and Subsistence,OFFICIAL RECEIVER SERVICES                                                                          ,Staff Payment,BA0000296506,3.00,
BIS,The Insolvency Service,02/06/2016,Travel and Subsistence,OFFICIAL RECEIVER SERVICES                                                                          ,Staff Payment,BA0000296506,117.90,
BIS,The Insolvency Service,02/06/2016,Travel and Subsistence,OFFICIAL RECEIVER SERVICES                                                                          ,Staff Payment,BA0000296506,8.00,
BIS,The Insolvency Service,02/06/2016,Travel and Subsistence,OFFICIAL RECEIVER SERVICES                                                                          ,Staff Payment,BA0000296506,37.80,
BIS,The Insolvency Service,02/06/2016,Travel and Subsistence,OFFICIAL RECEIVER SERVICES                                                                          ,Staff Payment,BA0000296506,7.65,
BIS,The Insolvency Service,02/06/2016,Travel and Subsistence,OFFICIAL RECEIVER SERVICES                                                                          ,Staff Payment,BA0000296506,9.00,
BIS,The Insolvency Service,02/06/2016,Travel and Subsistence,OFFICIAL RECEIVER SERVICES                                                                          ,Staff Payment,BA0000296506,50.00,
BIS,The Insolvency Service,02/06/2016,Travel and Subsistence,PEOPLE & CAPABILITY                                                                                 ,Staff Payment,BA0000296506,6.30,
BIS,The Insolvency Service,02/06/2016,Travel and Subsistence,BUSINESS SERVICES DIRECTORATE                                                                       ,Staff Payment,BA0000296506,9.00,
BIS,The Insolvency Service,02/06/2016,Travel and Subsistence,BUSINESS SERVICES DIRECTORATE                                                                       ,Staff Payment,BA0000296506,8.50,
BIS,The Insolvency Service,02/06/2016,Travel and Subsistence,BUSINESS SERVICES DIRECTORATE                                                                       ,Staff Payment,BA0000296506,8.00,
BIS,The Insolvency Service,02/06/2016,Travel and Subsistence,BUSINESS SERVICES DIRECTORATE                                                                       ,Staff Payment,BA0000296506,27.30,
BIS,The Insolvency Service,02/06/2016,Travel and Subsistence,BUSINESS SERVICES DIRECTORATE                                                                       ,Staff Payment,BA0000296506,5.00,
BIS,The Insolvency Service,02/06/2016,Travel and Subsistence,BUSINESS SERVICES DIRECTORATE                                                                       ,Staff Payment,BA0000296506,22.95,
BIS,The Insolvency Service,02/06/2016,Travel and Subsistence,BUSINESS SERVICES DIRECTORATE                                                                       ,Staff Payment,BA0000296506,16.86,
BIS,The Insolvency Service,02/06/2016,Travel and Subsistence,BUSINESS SERVICES DIRECTORATE                                                                       ,Staff Payment,BA0000296506,30.00,
BIS,The Insolvency Service,02/06/2016,Travel and Subsistence,INVESTIGATIONS & ENFORCEMENT                                                                        ,Staff Payment,BA0000296506,3.98,
BIS,The Insolvency Service,02/06/2016,Travel and Subsistence,INVESTIGATIONS & ENFORCEMENT                                                                        ,Staff Payment,BA0000296505,16.95,
BIS,The Insolvency Service,02/06/2016,Travel and Subsistence,INVESTIGATIONS & ENFORCEMENT                                                                        ,Staff Payment,BA0000296506,5.00,
BIS,The Insolvency Service,02/06/2016,Travel and Subsistence,INVESTIGATIONS & ENFORCEMENT                                                                        ,Staff Payment,BA0000296505,10.00,
BIS,The Insolvency Service,02/06/2016,Travel and Subsistence,INVESTIGATIONS & ENFORCEMENT                                                                        ,Staff Payment,BA0000296505,9.29,
BIS,The Insolvency Service,02/06/2016,Travel and Subsistence,OFFICIAL RECEIVER SERVICES                                                                          ,Staff Payment,BA0000296506,5.00,
BIS,The Insolvency Service,02/06/2016,Travel and Subsistence,OFFICIAL RECEIVER SERVICES                                                                          ,Staff Payment,BA0000296506,25.00,
BIS,The Insolvency Service,02/06/2016,Travel and Subsistence,OFFICIAL RECEIVER SERVICES                                                                          ,Staff Payment,BA0000296506,9.82,
BIS,The Insolvency Service,02/06/2016,Travel and Subsistence,OFFICIAL RECEIVER SERVICES                                                                          ,Staff Payment,BA0000296506,4.25,
BIS,The Insolvency Service,02/06/2016,Travel and Subsistence,PEOPLE & CAPABILITY                                                                                 ,Staff Payment,BA0000296506,10.00,
BIS,The Insolvency Service,02/06/2016,Insolvency Case Related Costs,INVESTIGATIONS & ENFORCEMENT                                                                        ,Staff Payment,BA0000296506,14.00,
BIS,The Insolvency Service,02/06/2016,Insolvency Case Related Costs,INVESTIGATIONS & ENFORCEMENT                                                                        ,Staff Payment,BA0000296506,7.00,
BIS,The Insolvency Service,03/06/2016,Travel and Subsistence,CUSTOMER AND COMMUNICATIONS                                                                         ,Staff Payment,BA0000296538,29.00,
BIS,The Insolvency Service,03/06/2016,Travel and Subsistence,BUSINESS SERVICES DIRECTORATE                                                                       ,Staff Payment,BA0000296538,1.60,
BIS,The Insolvency Service,03/06/2016,Travel and Subsistence,INVESTIGATIONS & ENFORCEMENT                                                                        ,Staff Payment,BA0000296538,6.40,
BIS,The Insolvency Service,03/06/2016,Travel and Subsistence,BUSINESS SERVICES DIRECTORATE                                                                       ,Staff Payment,BA0000296538,148.50,
BIS,The Insolvency Service,03/06/2016,Travel and Subsistence,INVESTIGATIONS & ENFORCEMENT                                                                        ,Staff Payment,BA0000296538,6.00,
BIS,The Insolvency Service,03/06/2016,Travel and Subsistence,INVESTIGATIONS & ENFORCEMENT                                                                        ,Staff Payment,BA0000296538,148.50,
BIS,The Insolvency Service,03/06/2016,Travel and Subsistence,OFFICIAL RECEIVER SERVICES                                                                          ,Staff Payment,BA0000296538,55.00,
BIS,The Insolvency Service,03/06/2016,Travel and Subsistence,OFFICIAL RECEIVER SERVICES                                                                          ,Staff Payment,BA0000296538,3.00,
BIS,The Insolvency Service,03/06/2016,Travel and Subsistence,BUSINESS SERVICES DIRECTORATE                                                                       ,Staff Payment,BA0000296538,8.00,
BIS,The Insolvency Service,03/06/2016,Travel and Subsistence,BUSINESS SERVICES DIRECTORATE                                                                       ,Staff Payment,BA0000296538,8.00,
BIS,The Insolvency Service,03/06/2016,Travel and Subsistence,BUSINESS SERVICES DIRECTORATE                                                                       ,Staff Payment,BA0000296538,27.95,
BIS,The Insolvency Service,03/06/2016,Travel and Subsistence,BUSINESS SERVICES DIRECTORATE                                                                       ,Staff Payment,BA0000296538,24.99,
BIS,The Insolvency Service,03/06/2016,Travel and Subsistence,BUSINESS SERVICES DIRECTORATE                                                                       ,Staff Payment,BA0000296538,26.50,
BIS,The Insolvency Service,03/06/2016,Travel and Subsistence,BUSINESS SERVICES DIRECTORATE                                                                       ,Staff Payment,BA0000296538,32.54,
BIS,The Insolvency Service,03/06/2016,Travel and Subsistence,INVESTIGATIONS & ENFORCEMENT                                                                        ,Staff Payment,BA0000296538,3.29,
BIS,The Insolvency Service,07/06/2016,Travel and Subsistence,OFFICIAL RECEIVER SERVICES                                                                          ,Staff Payment,BA0000296600,95.40,
BIS,The Insolvency Service,07/06/2016,Travel and Subsistence,OFFICIAL RECEIVER SERVICES                                                                          ,Staff Payment,BA0000296600,47.70,
BIS,The Insolvency Service,07/06/2016,Travel and Subsistence,INVESTIGATIONS & ENFORCEMENT                                                                        ,Staff Payment,BA0000296600,4.80,
BIS,The Insolvency Service,07/06/2016,Travel and Subsistence,INVESTIGATIONS & ENFORCEMENT                                                                        ,Staff Payment,BA0000296600,6.40,
BIS,The Insolvency Service,07/06/2016,Travel and Subsistence,OFFICIAL RECEIVER SERVICES                                                                          ,Staff Payment,BA0000296600,7.10,
BIS,The Insolvency Service,07/06/2016,Travel and Subsistence,OFFICIAL RECEIVER SERVICES                                                                          ,Staff Payment,BA0000296600,165.55,
BIS,The Insolvency Service,07/06/2016,Travel and Subsistence,OFFICIAL RECEIVER SERVICES                                                                          ,Staff Payment,BA0000296600,2.30,
BIS,The Insolvency Service,07/06/2016,Travel and Subsistence,OFFICIAL RECEIVER SERVICES                                                                          ,Staff Payment,BA0000296600,1.10,
BIS,The Insolvency Service,07/06/2016,Travel and Subsistence,OFFICIAL RECEIVER SERVICES                                                                          ,Staff Payment,BA0000296600,2.50,
BIS,The Insolvency Service,07/06/2016,Travel and Subsistence,BUSINESS SERVICES DIRECTORATE                                                                       ,Staff Payment,BA0000296600,193.50,
BIS,The Insolvency Service,07/06/2016,Travel and Subsistence,BUSINESS SERVICES DIRECTORATE                                                                       ,Staff Payment,BA0000296600,3.66,
BIS,The Insolvency Service,07/06/2016,Travel and Subsistence,BUSINESS SERVICES DIRECTORATE                                                                       ,Staff Payment,BA0000296600,89.50,
BIS,The Insolvency Service,07/06/2016,Travel and Subsistence,BUSINESS SERVICES DIRECTORATE                                                                       ,Staff Payment,BA0000296600,105.75,
BIS,The Insolvency Service,07/06/2016,Travel and Subsistence,BUSINESS SERVICES DIRECTORATE                                                                       ,Staff Payment,BA0000296600,15.75,
BIS,The Insolvency Service,07/06/2016,Travel and Subsistence,BUSINESS SERVICES DIRECTORATE                                                                       ,Staff Payment,BA0000296600,46.32,
BIS,The Insolvency Service,07/06/2016,Travel and Subsistence,INVESTIGATIONS & ENFORCEMENT                                                                        ,Staff Payment,BA0000296600,24.30,
BIS,The Insolvency Service,07/06/2016,Travel and Subsistence,INVESTIGATIONS & ENFORCEMENT                                                                        ,Staff Payment,BA0000296600,52.60,
BIS,The Insolvency Service,07/06/2016,Travel and Subsistence,OFFICIAL RECEIVER SERVICES                                                                          ,Staff Payment,BA0000296600,9.00,
BIS,The Insolvency Service,07/06/2016,Travel and Subsistence,OFFICIAL RECEIVER SERVICES                                                                          ,Staff Payment,BA0000296600,100.35,
BIS,The Insolvency Service,07/06/2016,Travel and Subsistence,OFFICIAL RECEIVER SERVICES                                                                          ,Staff Payment,BA0000296600,5.40,
BIS,The Insolvency Service,07/06/2016,Travel and Subsistence,OFFICIAL RECEIVER SERVICES                                                                          ,Staff Payment,BA0000296600,5.40,
BIS,The Insolvency Service,07/06/2016,Travel and Subsistence,OFFICIAL RECEIVER SERVICES                                                                          ,Staff Payment,BA0000296600,8.00,
BIS,The Insolvency Service,07/06/2016,Travel and Subsistence,OFFICIAL RECEIVER SERVICES                                                                          ,Staff Payment,BA0000296600,12.00,
BIS,The Insolvency Service,07/06/2016,Travel and Subsistence,OFFICIAL RECEIVER SERVICES                                                                          ,Staff Payment,BA0000296600,10.00,
BIS,The Insolvency Service,07/06/2016,Travel and Subsistence,OFFICIAL RECEIVER SERVICES                                                                          ,Staff Payment,BA0000296600,9.80,
BIS,The Insolvency Service,07/06/2016,Travel and Subsistence,OFFICIAL RECEIVER SERVICES                                                                          ,Staff Payment,BA0000296600,18.90,
BIS,The Insolvency Service,07/06/2016,Travel and Subsistence,OFFICIAL RECEIVER SERVICES                                                                          ,Staff Payment,BA0000296600,30.00,
BIS,The Insolvency Service,07/06/2016,Travel and Subsistence,OFFICIAL RECEIVER SERVICES                                                                          ,Staff Payment,BA0000296600,11.40,
BIS,The Insolvency Service,07/06/2016,Travel and Subsistence,OFFICIAL RECEIVER SERVICES                                                                          ,Staff Payment,BA0000296600,6.00,
BIS,The Insolvency Service,07/06/2016,Travel and Subsistence,OFFICIAL RECEIVER SERVICES                                                                          ,Staff Payment,BA0000296600,55.80,
BIS,The Insolvency Service,07/06/2016,Travel and Subsistence,OFFICIAL RECEIVER SERVICES                                                                          ,Staff Payment,BA0000296600,2.00,
BIS,The Insolvency Service,07/06/2016,Travel and Subsistence,OFFICIAL RECEIVER SERVICES                                                                          ,Staff Payment,BA0000296600,64.80,
BIS,The Insolvency Service,07/06/2016,Travel and Subsistence,OFFICIAL RECEIVER SERVICES                                                                          ,Staff Payment,BA0000296600,51.30,
BIS,The Insolvency Service,07/06/2016,Travel and Subsistence,BUSINESS SERVICES DIRECTORATE                                                                       ,Staff Payment,BA0000296600,8.00,
BIS,The Insolvency Service,07/06/2016,Travel and Subsistence,OFFICIAL RECEIVER SERVICES                                                                          ,Staff Payment,BA0000296600,56.00,
BIS,The Insolvency Service,07/06/2016,Travel and Subsistence,PEOPLE & CAPABILITY                                                                                 ,Staff Payment,BA0000296600,11.00,
BIS,The Insolvency Service,07/06/2016,Travel and Subsistence,BUSINESS SERVICES DIRECTORATE                                                                       ,Staff Payment,BA0000296600,27.90,
BIS,The Insolvency Service,07/06/2016,Travel and Subsistence,BUSINESS SERVICES DIRECTORATE                                                                       ,Staff Payment,BA0000296600,11.95,
BIS,The Insolvency Service,07/06/2016,Travel and Subsistence,BUSINESS SERVICES DIRECTORATE                                                                       ,Staff Payment,BA0000296600,4.95,
BIS,The Insolvency Service,07/06/2016,Travel and Subsistence,BUSINESS SERVICES DIRECTORATE                                                                       ,Staff Payment,BA0000296600,38.78,
BIS,The Insolvency Service,07/06/2016,Travel and Subsistence,BUSINESS SERVICES DIRECTORATE                                                                       ,Staff Payment,BA0000296600,22.84,
BIS,The Insolvency Service,07/06/2016,Travel and Subsistence,BUSINESS SERVICES DIRECTORATE                                                                       ,Staff Payment,BA0000296600,44.05,
BIS,The Insolvency Service,07/06/2016,Travel and Subsistence,BUSINESS SERVICES DIRECTORATE                                                                       ,Staff Payment,BA0000296600,5.00,
BIS,The Insolvency Service,07/06/2016,Travel and Subsistence,INVESTIGATIONS & ENFORCEMENT                                                                        ,Staff Payment,BA0000296600,10.00,
BIS,The Insolvency Service,07/06/2016,Travel and Subsistence,INVESTIGATIONS & ENFORCEMENT                                                                        ,Staff Payment,BA0000296600,5.00,
BIS,The Insolvency Service,07/06/2016,Travel and Subsistence,INVESTIGATIONS & ENFORCEMENT                                                                        ,Staff Payment,BA0000296600,5.00,
BIS,The Insolvency Service,07/06/2016,Travel and Subsistence,INVESTIGATIONS & ENFORCEMENT                                                                        ,Staff Payment,BA0000296600,5.00,
BIS,The Insolvency Service,07/06/2016,Travel and Subsistence,INVESTIGATIONS & ENFORCEMENT                                                                        ,Staff Payment,BA0000296600,5.00,
BIS,The Insolvency Service,07/06/2016,Travel and Subsistence,OFFICIAL RECEIVER SERVICES                                                                          ,Staff Payment,BA0000296600,5.00,
BIS,The Insolvency Service,07/06/2016,Travel and Subsistence,OFFICIAL RECEIVER SERVICES                                                                          ,Staff Payment,BA0000296600,8.49,
BIS,The Insolvency Service,07/06/2016,Travel and Subsistence,OFFICIAL RECEIVER SERVICES                                                                          ,Staff Payment,BA0000296600,5.00,
BIS,The Insolvency Service,07/06/2016,Travel and Subsistence,OFFICIAL RECEIVER SERVICES                                                                          ,Staff Payment,BA0000296600,14.09,
BIS,The Insolvency Service,07/06/2016,Travel and Subsistence,OFFICIAL RECEIVER SERVICES                                                                          ,Staff Payment,BA0000296600,12.79,
BIS,The Insolvency Service,07/06/2016,Travel and Subsistence,OFFICIAL RECEIVER SERVICES                                                                          ,Staff Payment,BA0000296600,16.90,
BIS,The Insolvency Service,07/06/2016,Travel and Subsistence,OFFICIAL RECEIVER SERVICES                                                                          ,Staff Payment,BA0000296600,10.00,
BIS,The Insolvency Service,07/06/2016,Travel and Subsistence,OFFICIAL RECEIVER SERVICES                                                                          ,Staff Payment,BA0000296600,17.99,
BIS,The Insolvency Service,07/06/2016,Travel and Subsistence,OFFICIAL RECEIVER SERVICES                                                                          ,Staff Payment,BA0000296600,4.15,
BIS,The Insolvency Service,07/06/2016,Travel and Subsistence,OFFICIAL RECEIVER SERVICES                                                                          ,Staff Payment,BA0000296600,8.45,
BIS,The Insolvency Service,07/06/2016,Travel and Subsistence,OFFICIAL RECEIVER SERVICES                                                                          ,Staff Payment,BA0000296600,37.39,
BIS,The Insolvency Service,07/06/2016,Travel and Subsistence,OFFICIAL RECEIVER SERVICES                                                                          ,Staff Payment,BA0000296600,48.30,
BIS,The Insolvency Service,07/06/2016,Travel and Subsistence,OFFICIAL RECEIVER SERVICES                                                                          ,Staff Payment,BA0000296600,13.44,
BIS,The Insolvency Service,07/06/2016,Travel and Subsistence,OFFICIAL RECEIVER SERVICES                                                                          ,Staff Payment,BA0000296600,25.00,
BIS,The Insolvency Service,07/06/2016,Travel and Subsistence,OFFICIAL RECEIVER SERVICES                                                                          ,Staff Payment,BA0000296600,5.00,
BIS,The Insolvency Service,07/06/2016,Travel and Subsistence,P&C - People Relations                                                                              ,Staff Payment,BA0000296600,10.00,
BIS,The Insolvency Service,07/06/2016,Travel and Subsistence,PEOPLE & CAPABILITY                                                                                 ,Staff Payment,BA0000296600,19.55,
BIS,The Insolvency Service,07/06/2016,Travel and Subsistence,PEOPLE & CAPABILITY                                                                                 ,Staff Payment,BA0000296600,17.63,
BIS,The Insolvency Service,07/06/2016,Travel and Subsistence,PEOPLE & CAPABILITY                                                                                 ,Staff Payment,BA0000296600,36.99,
BIS,The Insolvency Service,07/06/2016,Travel and Subsistence,PEOPLE & CAPABILITY                                                                                 ,Staff Payment,BA0000296600,4.57,
BIS,The Insolvency Service,07/06/2016,Travel and Subsistence,PEOPLE & CAPABILITY                                                                                 ,Staff Payment,BA0000296600,20.00,
BIS,The Insolvency Service,07/06/2016,Employee Related Costs,BUSINESS SERVICES DIRECTORATE                                                                       ,Staff Payment,BA0000296600,22.20,
BIS,The Insolvency Service,07/06/2016,Employee Related Costs,BUSINESS SERVICES DIRECTORATE                                                                       ,Staff Payment,BA0000296600,3.00,
BIS,The Insolvency Service,08/06/2016,Travel and Subsistence,INVESTIGATIONS & ENFORCEMENT                                                                        ,Staff Payment,BA0000296623,6.90,
BIS,The Insolvency Service,08/06/2016,Travel and Subsistence,INVESTIGATIONS & ENFORCEMENT                                                                        ,Staff Payment,BA0000296623,4.60,
BIS,The Insolvency Service,08/06/2016,Travel and Subsistence,INVESTIGATIONS & ENFORCEMENT                                                                        ,Staff Payment,BA0000296623,19.80,
BIS,The Insolvency Service,08/06/2016,Travel and Subsistence,OFFICIAL RECEIVER SERVICES                                                                          ,Staff Payment,BA0000296623,13.40,
BIS,The Insolvency Service,08/06/2016,Travel and Subsistence,OFFICIAL RECEIVER SERVICES                                                                          ,Staff Payment,BA0000296623,25.20,
BIS,The Insolvency Service,08/06/2016,Travel and Subsistence,OFFICIAL RECEIVER SERVICES                                                                          ,Staff Payment,BA0000296623,6.68,
BIS,The Insolvency Service,08/06/2016,Travel and Subsistence,OFFICIAL RECEIVER SERVICES                                                                          ,Staff Payment,BA0000296623,117.00,
BIS,The Insolvency Service,08/06/2016,Travel and Subsistence,OFFICIAL RECEIVER SERVICES                                                                          ,Staff Payment,BA0000296623,6.00,
BIS,The Insolvency Service,08/06/2016,Travel and Subsistence,OFFICIAL RECEIVER SERVICES                                                                          ,Staff Payment,BA0000296623,3.00,
BIS,The Insolvency Service,08/06/2016,Travel and Subsistence,OFFICIAL RECEIVER SERVICES                                                                          ,Staff Payment,BA0000296623,23.40,
BIS,The Insolvency Service,08/06/2016,Travel and Subsistence,OFFICIAL RECEIVER SERVICES                                                                          ,Staff Payment,BA0000296623,26.00,
BIS,The Insolvency Service,08/06/2016,Travel and Subsistence,INVESTIGATIONS & ENFORCEMENT                                                                        ,Staff Payment,BA0000296623,5.00,
BIS,The Insolvency Service,08/06/2016,Travel and Subsistence,INVESTIGATIONS & ENFORCEMENT                                                                        ,Staff Payment,BA0000296623,10.00,
BIS,The Insolvency Service,08/06/2016,Insolvency Case Related Costs,INVESTIGATIONS & ENFORCEMENT                                                                        ,Staff Payment,BA0000296623,7.00,
BIS,The Insolvency Service,08/06/2016,Employee Related Costs,OFFICIAL RECEIVER SERVICES                                                                          ,Staff Payment,BA0000296623,90.00,
BIS,The Insolvency Service,08/06/2016,Office Supplies and Services,INVESTIGATIONS & ENFORCEMENT                                                                        ,Staff Payment,BA0000296623,10.00,
BIS,The Insolvency Service,09/06/2016,Travel and Subsistence,INFORMATION TECHNOLOGY                                                                              ,Staff Payment,BA0000296656,9.60,
BIS,The Insolvency Service,09/06/2016,Travel and Subsistence,INFORMATION TECHNOLOGY                                                                              ,Staff Payment,BA0000296656,106.00,
BIS,The Insolvency Service,09/06/2016,Travel and Subsistence,INFORMATION TECHNOLOGY                                                                              ,Staff Payment,BA0000296656,21.00,
BIS,The Insolvency Service,09/06/2016,Travel and Subsistence,INFORMATION TECHNOLOGY                                                                              ,Staff Payment,BA0000296656,32.40,
BIS,The Insolvency Service,09/06/2016,Travel and Subsistence,BUSINESS SERVICES DIRECTORATE                                                                       ,Staff Payment,BA0000296656,19.20,
BIS,The Insolvency Service,09/06/2016,Travel and Subsistence,INVESTIGATIONS & ENFORCEMENT                                                                        ,Staff Payment,BA0000296656,13.00,
BIS,The Insolvency Service,09/06/2016,Travel and Subsistence,INVESTIGATIONS & ENFORCEMENT                                                                        ,Staff Payment,BA0000296656,6.00,
BIS,The Insolvency Service,09/06/2016,Travel and Subsistence,INVESTIGATIONS & ENFORCEMENT                                                                        ,Staff Payment,BA0000296656,3.00,
BIS,The Insolvency Service,09/06/2016,Travel and Subsistence,INVESTIGATIONS & ENFORCEMENT                                                                        ,Staff Payment,BA0000296656,3.00,
BIS,The Insolvency Service,09/06/2016,Travel and Subsistence,INVESTIGATIONS & ENFORCEMENT                                                                        ,Staff Payment,BA0000296656,3.00,
BIS,The Insolvency Service,09/06/2016,Travel and Subsistence,OFFICIAL RECEIVER SERVICES                                                                          ,Staff Payment,BA0000296656,7.20,
BIS,The Insolvency Service,09/06/2016,Travel and Subsistence,OFFICIAL RECEIVER SERVICES                                                                          ,Staff Payment,BA0000296656,3.70,
BIS,The Insolvency Service,09/06/2016,Travel and Subsistence,OFFICIAL RECEIVER SERVICES                                                                          ,Staff Payment,BA0000296656,4.80,
BIS,The Insolvency Service,09/06/2016,Travel and Subsistence,OFFICIAL RECEIVER SERVICES                                                                          ,Staff Payment,BA0000296656,4.80,
BIS,The Insolvency Service,09/06/2016,Travel and Subsistence,PEOPLE & CAPABILITY                                                                                 ,Staff Payment,BA0000296656,37.40,
BIS,The Insolvency Service,09/06/2016,Travel and Subsistence,BUSINESS SERVICES DIRECTORATE                                                                       ,Staff Payment,BA0000296656,92.35,
BIS,The Insolvency Service,09/06/2016,Travel and Subsistence,BUSINESS SERVICES DIRECTORATE                                                                       ,Staff Payment,BA0000296656,41.76,
BIS,The Insolvency Service,09/06/2016,Travel and Subsistence,INVESTIGATIONS & ENFORCEMENT                                                                        ,Staff Payment,BA0000296656,19.01,
BIS,The Insolvency Service,09/06/2016,Travel and Subsistence,INVESTIGATIONS & ENFORCEMENT                                                                        ,Staff Payment,BA0000296656,6.50,
BIS,The Insolvency Service,09/06/2016,Travel and Subsistence,INVESTIGATIONS & ENFORCEMENT                                                                        ,Staff Payment,BA0000296656,9.00,
BIS,The Insolvency Service,09/06/2016,Travel and Subsistence,OFFICIAL RECEIVER SERVICES                                                                          ,Staff Payment,BA0000296656,0.60,
BIS,The Insolvency Service,09/06/2016,Travel and Subsistence,OFFICIAL RECEIVER SERVICES                                                                          ,Staff Payment,BA0000296656,46.80,
BIS,The Insolvency Service,09/06/2016,Travel and Subsistence,OFFICIAL RECEIVER SERVICES                                                                          ,Staff Payment,BA0000296656,1.20,
BIS,The Insolvency Service,09/06/2016,Travel and Subsistence,OFFICIAL RECEIVER SERVICES                                                                          ,Staff Payment,BA0000296656,26.10,
BIS,The Insolvency Service,09/06/2016,Travel and Subsistence,OFFICIAL RECEIVER SERVICES                                                                          ,Staff Payment,BA0000296656,5.00,
BIS,The Insolvency Service,09/06/2016,Travel and Subsistence,OFFICIAL RECEIVER SERVICES                                                                          ,Staff Payment,BA0000296656,13.95,
BIS,The Insolvency Service,09/06/2016,Travel and Subsistence,OFFICIAL RECEIVER SERVICES                                                                          ,Staff Payment,BA0000296656,6.00,
BIS,The Insolvency Service,09/06/2016,Travel and Subsistence,OFFICIAL RECEIVER SERVICES                                                                          ,Staff Payment,BA0000296656,102.60,
BIS,The Insolvency Service,09/06/2016,Travel and Subsistence,OFFICIAL RECEIVER SERVICES                                                                          ,Staff Payment,BA0000296656,3.40,
BIS,The Insolvency Service,09/06/2016,Travel and Subsistence,OFFICIAL RECEIVER SERVICES                                                                          ,Staff Payment,BA0000296656,40.50,
BIS,The Insolvency Service,09/06/2016,Travel and Subsistence,OFFICIAL RECEIVER SERVICES                                                                          ,Staff Payment,BA0000296656,2.70,
BIS,The Insolvency Service,09/06/2016,Travel and Subsistence,OFFICIAL RECEIVER SERVICES                                                                          ,Staff Payment,BA0000296656,2.00,
BIS,The Insolvency Service,09/06/2016,Travel and Subsistence,OFFICIAL RECEIVER SERVICES                                                                          ,Staff Payment,BA0000296656,9.00,
BIS,The Insolvency Service,09/06/2016,Travel and Subsistence,PEOPLE & CAPABILITY                                                                                 ,Staff Payment,BA0000296656,25.65,
BIS,The Insolvency Service,09/06/2016,Travel and Subsistence,BUSINESS SERVICES DIRECTORATE                                                                       ,Staff Payment,BA0000296656,32.05,
BIS,The Insolvency Service,09/06/2016,Travel and Subsistence,BUSINESS SERVICES DIRECTORATE                                                                       ,Staff Payment,BA0000296656,19.00,
BIS,The Insolvency Service,09/06/2016,Travel and Subsistence,OFFICIAL RECEIVER SERVICES                                                                          ,Staff Payment,BA0000296656,23.00,
BIS,The Insolvency Service,09/06/2016,Travel and Subsistence,OFFICIAL RECEIVER SERVICES                                                                          ,Staff Payment,BA0000296656,21.50,
BIS,The Insolvency Service,09/06/2016,Travel and Subsistence,BUSINESS SERVICES DIRECTORATE                                                                       ,Staff Payment,BA0000296656,133.14,
BIS,The Insolvency Service,09/06/2016,Travel and Subsistence,BUSINESS SERVICES DIRECTORATE                                                                       ,Staff Payment,BA0000296656,5.00,
BIS,The Insolvency Service,09/06/2016,Travel and Subsistence,BUSINESS SERVICES DIRECTORATE                                                                       ,Staff Payment,BA0000296656,19.70,
BIS,The Insolvency Service,09/06/2016,Travel and Subsistence,BUSINESS SERVICES DIRECTORATE                                                                       ,Staff Payment,BA0000296656,5.00,
BIS,The Insolvency Service,09/06/2016,Travel and Subsistence,BUSINESS SERVICES DIRECTORATE                                                                       ,Staff Payment,BA0000296656,24.95,
BIS,The Insolvency Service,09/06/2016,Travel and Subsistence,INVESTIGATIONS & ENFORCEMENT                                                                        ,Staff Payment,BA0000296656,5.00,
BIS,The Insolvency Service,09/06/2016,Travel and Subsistence,INVESTIGATIONS & ENFORCEMENT                                                                        ,Staff Payment,BA0000296656,9.75,
BIS,The Insolvency Service,09/06/2016,Travel and Subsistence,INVESTIGATIONS & ENFORCEMENT                                                                        ,Staff Payment,BA0000296656,9.65,
BIS,The Insolvency Service,09/06/2016,Travel and Subsistence,INVESTIGATIONS & ENFORCEMENT                                                                        ,Staff Payment,BA0000296656,20.00,
BIS,The Insolvency Service,09/06/2016,Travel and Subsistence,INVESTIGATIONS & ENFORCEMENT                                                                        ,Staff Payment,BA0000296656,4.80,
BIS,The Insolvency Service,09/06/2016,Travel and Subsistence,INVESTIGATIONS & ENFORCEMENT                                                                        ,Staff Payment,BA0000296656,5.00,
BIS,The Insolvency Service,09/06/2016,Travel and Subsistence,INVESTIGATIONS & ENFORCEMENT                                                                        ,Staff Payment,BA0000296656,4.98,
BIS,The Insolvency Service,09/06/2016,Travel and Subsistence,INVESTIGATIONS & ENFORCEMENT                                                                        ,Staff Payment,BA0000296656,5.00,
BIS,The Insolvency Service,09/06/2016,Travel and Subsistence,OFFICIAL RECEIVER SERVICES                                                                          ,Staff Payment,BA0000296656,58.20,
BIS,The Insolvency Service,09/06/2016,Travel and Subsistence,OFFICIAL RECEIVER SERVICES                                                                          ,Staff Payment,BA0000296656,41.09,
BIS,The Insolvency Service,09/06/2016,Travel and Subsistence,OFFICIAL RECEIVER SERVICES                                                                          ,Staff Payment,BA0000296656,4.95,
BIS,The Insolvency Service,09/06/2016,Travel and Subsistence,OFFICIAL RECEIVER SERVICES                                                                          ,Staff Payment,BA0000296656,5.00,
BIS,The Insolvency Service,09/06/2016,Travel and Subsistence,OFFICIAL RECEIVER SERVICES                                                                          ,Staff Payment,BA0000296656,25.00,
BIS,The Insolvency Service,09/06/2016,Travel and Subsistence,OFFICIAL RECEIVER SERVICES                                                                          ,Staff Payment,BA0000296656,4.45,
BIS,The Insolvency Service,09/06/2016,Travel and Subsistence,OFFICIAL RECEIVER SERVICES                                                                          ,Staff Payment,BA0000296656,10.00,
BIS,The Insolvency Service,09/06/2016,Travel and Subsistence,OFFICIAL RECEIVER SERVICES                                                                          ,Staff Payment,BA0000296656,5.00,
BIS,The Insolvency Service,09/06/2016,Travel and Subsistence,PEOPLE & CAPABILITY                                                                                 ,Staff Payment,BA0000296656,4.84,
BIS,The Insolvency Service,09/06/2016,Travel and Subsistence,PEOPLE & CAPABILITY                                                                                 ,Staff Payment,BA0000296656,12.15,
BIS,The Insolvency Service,09/06/2016,Office Supplies and Services,OFFICIAL RECEIVER SERVICES                                                                          ,Staff Payment,BA0000296656,6.15,
BIS,The Insolvency Service,10/06/2016,Travel and Subsistence,PEOPLE & CAPABILITY                                                                                 ,Staff Payment,BA0000296665,5.00,
BIS,The Insolvency Service,10/06/2016,Travel and Subsistence,EXTERNAL AFFAIRS                                                                                    ,Staff Payment,BA0000296665,3.75,
BIS,The Insolvency Service,10/06/2016,Travel and Subsistence,INVESTIGATIONS & ENFORCEMENT                                                                        ,Staff Payment,BA0000296665,6.20,
BIS,The Insolvency Service,10/06/2016,Travel and Subsistence,INVESTIGATIONS & ENFORCEMENT                                                                        ,Staff Payment,BA0000296665,8.40,
BIS,The Insolvency Service,10/06/2016,Travel and Subsistence,INVESTIGATIONS & ENFORCEMENT                                                                        ,Staff Payment,BA0000296665,4.80,
BIS,The Insolvency Service,10/06/2016,Travel and Subsistence,BUSINESS SERVICES DIRECTORATE                                                                       ,Staff Payment,BA0000296665,9.00,
BIS,The Insolvency Service,10/06/2016,Travel and Subsistence,INVESTIGATIONS & ENFORCEMENT                                                                        ,Staff Payment,BA0000296665,9.90,
BIS,The Insolvency Service,10/06/2016,Travel and Subsistence,OFFICIAL RECEIVER SERVICES                                                                          ,Staff Payment,BA0000296665,2.70,
BIS,The Insolvency Service,10/06/2016,Travel and Subsistence,OFFICIAL RECEIVER SERVICES                                                                          ,Staff Payment,BA0000296665,5.40,
BIS,The Insolvency Service,10/06/2016,Travel and Subsistence,OFFICIAL RECEIVER SERVICES                                                                          ,Staff Payment,BA0000296665,1.20,
BIS,The Insolvency Service,10/06/2016,Travel and Subsistence,OFFICIAL RECEIVER SERVICES                                                                          ,Staff Payment,BA0000296665,26.10,
BIS,The Insolvency Service,10/06/2016,Travel and Subsistence,PEOPLE & CAPABILITY                                                                                 ,Staff Payment,BA0000296665,10.00,
BIS,The Insolvency Service,10/06/2016,Travel and Subsistence,FINANCE AND COMMERCIAL,Staff Payment,BA0000296665,8.50,
BIS,The Insolvency Service,10/06/2016,Travel and Subsistence,BUSINESS SERVICES DIRECTORATE                                                                       ,Staff Payment,BA0000296665,24.20,
BIS,The Insolvency Service,10/06/2016,Travel and Subsistence,EXTERNAL AFFAIRS                                                                                    ,Staff Payment,BA0000296665,9.79,
BIS,The Insolvency Service,10/06/2016,Travel and Subsistence,FINANCE AND COMMERCIAL,Staff Payment,BA0000296665,5.00,
BIS,The Insolvency Service,10/06/2016,Travel and Subsistence,INVESTIGATIONS & ENFORCEMENT                                                                        ,Staff Payment,BA0000296665,10.00,
BIS,The Insolvency Service,10/06/2016,Travel and Subsistence,INVESTIGATIONS & ENFORCEMENT                                                                        ,Staff Payment,BA0000296665,5.00,
BIS,The Insolvency Service,10/06/2016,Travel and Subsistence,INVESTIGATIONS & ENFORCEMENT                                                                        ,Staff Payment,BA0000296665,3.80,
BIS,The Insolvency Service,10/06/2016,Travel and Subsistence,PEOPLE & CAPABILITY                                                                                 ,Staff Payment,BA0000296665,7.20,
BIS,The Insolvency Service,10/06/2016,Office Supplies and Services,INVESTIGATIONS & ENFORCEMENT                                                                        ,Staff Payment,BA0000296665,3.40,
BIS,The Insolvency Service,13/06/2016,Travel and Subsistence,INVESTIGATIONS & ENFORCEMENT                                                                        ,Staff Payment,BA0000296677,2.00,
BIS,The Insolvency Service,13/06/2016,Travel and Subsistence,INFORMATION TECHNOLOGY                                                                              ,Staff Payment,BA0000296677,99.90,
BIS,The Insolvency Service,13/06/2016,Travel and Subsistence,FINANCE AND COMMERCIAL                                                                              ,Staff Payment,BA0000296677,25.00,
BIS,The Insolvency Service,13/06/2016,Travel and Subsistence,INVESTIGATIONS & ENFORCEMENT                                                                        ,Staff Payment,BA0000296677,8.84,
BIS,The Insolvency Service,13/06/2016,Employee Related Costs,PEOPLE & CAPABILITY                                                                                 ,Staff Payment,BA0000296677,90.00,
BIS,The Insolvency Service,13/06/2016,Travel and Subsistence,PEOPLE & CAPABILITY                                                                                 ,Staff Payment,BA0000296677,12.00,
BIS,The Insolvency Service,13/06/2016,Travel and Subsistence,FINANCE AND COMMERCIAL                                                                              ,Staff Payment,BA0000296677,3.70,
BIS,The Insolvency Service,13/06/2016,Travel and Subsistence,OFFICIAL RECEIVER SERVICES                                                                          ,Staff Payment,BA0000296677,3.20,
BIS,The Insolvency Service,13/06/2016,Travel and Subsistence,OFFICIAL RECEIVER SERVICES                                                                          ,Staff Payment,BA0000296677,6.70,
BIS,The Insolvency Service,13/06/2016,Travel and Subsistence,OFFICIAL RECEIVER SERVICES                                                                          ,Staff Payment,BA0000296677,4.10,
BIS,The Insolvency Service,13/06/2016,Travel and Subsistence,PEOPLE & CAPABILITY                                                                                 ,Staff Payment,BA0000296677,9.00,
BIS,The Insolvency Service,13/06/2016,Travel and Subsistence,BUSINESS SERVICES DIRECTORATE                                                                       ,Staff Payment,BA0000296677,41.78,
BIS,The Insolvency Service,13/06/2016,Travel and Subsistence,BUSINESS SERVICES DIRECTORATE                                                                       ,Staff Payment,BA0000296677,265.50,
BIS,The Insolvency Service,13/06/2016,Travel and Subsistence,INVESTIGATIONS & ENFORCEMENT                                                                        ,Staff Payment,BA0000296677,4.50,
BIS,The Insolvency Service,13/06/2016,Travel and Subsistence,OFFICIAL RECEIVER SERVICES                                                                          ,Staff Payment,BA0000296677,67.50,
BIS,The Insolvency Service,13/06/2016,Travel and Subsistence,OFFICIAL RECEIVER SERVICES                                                                          ,Staff Payment,BA0000296677,8.10,
BIS,The Insolvency Service,13/06/2016,Travel and Subsistence,OFFICIAL RECEIVER SERVICES                                                                          ,Staff Payment,BA0000296677,28.80,
BIS,The Insolvency Service,13/06/2016,Travel and Subsistence,OFFICIAL RECEIVER SERVICES                                                                          ,Staff Payment,BA0000296677,5.00,
BIS,The Insolvency Service,13/06/2016,Travel and Subsistence,OFFICIAL RECEIVER SERVICES                                                                          ,Staff Payment,BA0000296677,37.35,
BIS,The Insolvency Service,13/06/2016,Travel and Subsistence,OFFICIAL RECEIVER SERVICES                                                                          ,Staff Payment,BA0000296677,2.00,
BIS,The Insolvency Service,13/06/2016,Travel and Subsistence,OFFICIAL RECEIVER SERVICES                                                                          ,Staff Payment,BA0000296677,16.20,
BIS,The Insolvency Service,13/06/2016,Travel and Subsistence,OFFICIAL RECEIVER SERVICES                                                                          ,Staff Payment,BA0000296677,5.00,
BIS,The Insolvency Service,13/06/2016,Travel and Subsistence,OFFICIAL RECEIVER SERVICES                                                                          ,Staff Payment,BA0000296677,20.70,
BIS,The Insolvency Service,13/06/2016,Travel and Subsistence,OFFICIAL RECEIVER SERVICES                                                                          ,Staff Payment,BA0000296677,1.00,
BIS,The Insolvency Service,13/06/2016,Travel and Subsistence,OFFICIAL RECEIVER SERVICES                                                                          ,Staff Payment,BA0000296677,18.00,
BIS,The Insolvency Service,13/06/2016,Travel and Subsistence,OFFICIAL RECEIVER SERVICES                                                                          ,Staff Payment,BA0000296677,2.00,
BIS,The Insolvency Service,13/06/2016,Travel and Subsistence,OFFICIAL RECEIVER SERVICES                                                                          ,Staff Payment,BA0000296677,113.40,
BIS,The Insolvency Service,13/06/2016,Travel and Subsistence,OFFICIAL RECEIVER SERVICES                                                                          ,Staff Payment,BA0000296677,2.00,
BIS,The Insolvency Service,13/06/2016,Travel and Subsistence,OFFICIAL RECEIVER SERVICES                                                                          ,Staff Payment,BA0000296677,14.40,
BIS,The Insolvency Service,13/06/2016,Travel and Subsistence,OFFICIAL RECEIVER SERVICES                                                                          ,Staff Payment,BA0000296677,3.00,
BIS,The Insolvency Service,13/06/2016,Travel and Subsistence,OFFICIAL RECEIVER SERVICES                                                                          ,Staff Payment,BA0000296677,4.50,
BIS,The Insolvency Service,13/06/2016,Travel and Subsistence,OFFICIAL RECEIVER SERVICES                                                                          ,Staff Payment,BA0000296677,187.00,
BIS,The Insolvency Service,13/06/2016,Travel and Subsistence,OFFICIAL RECEIVER SERVICES                                                                          ,Staff Payment,BA0000296677,9.00,
BIS,The Insolvency Service,13/06/2016,Travel and Subsistence,OFFICIAL RECEIVER SERVICES                                                                          ,Staff Payment,BA0000296677,9.00,
BIS,The Insolvency Service,13/06/2016,Travel and Subsistence,OFFICIAL RECEIVER SERVICES                                                                          ,Staff Payment,BA0000296677,3.00,
BIS,The Insolvency Service,13/06/2016,Travel and Subsistence,OFFICIAL RECEIVER SERVICES                                                                          ,Staff Payment,BA0000296677,7.30,
BIS,The Insolvency Service,13/06/2016,Travel and Subsistence,OFFICIAL RECEIVER SERVICES                                                                          ,Staff Payment,BA0000296677,6.00,
BIS,The Insolvency Service,13/06/2016,Travel and Subsistence,OFFICIAL RECEIVER SERVICES                                                                          ,Staff Payment,BA0000296677,14.60,
BIS,The Insolvency Service,13/06/2016,Travel and Subsistence,OFFICIAL RECEIVER SERVICES                                                                          ,Staff Payment,BA0000296677,2.00,
BIS,The Insolvency Service,13/06/2016,Travel and Subsistence,OFFICIAL RECEIVER SERVICES                                                                          ,Staff Payment,BA0000296677,13.50,
BIS,The Insolvency Service,13/06/2016,Travel and Subsistence,FINANCE AND COMMERCIAL                                                                              ,Staff Payment,BA0000296677,5.40,
BIS,The Insolvency Service,13/06/2016,Travel and Subsistence,INVESTIGATIONS & ENFORCEMENT                                                                        ,Staff Payment,BA0000296677,20.00,
BIS,The Insolvency Service,13/06/2016,Travel and Subsistence,INVESTIGATIONS & ENFORCEMENT                                                                        ,Staff Payment,BA0000296677,10.00,
BIS,The Insolvency Service,13/06/2016,Travel and Subsistence,PEOPLE & CAPABILITY                                                                                 ,Staff Payment,BA0000296677,20.00,
BIS,The Insolvency Service,13/06/2016,Travel and Subsistence,BUSINESS SERVICES DIRECTORATE                                                                       ,Staff Payment,BA0000296677,37.90,
BIS,The Insolvency Service,13/06/2016,Travel and Subsistence,BUSINESS SERVICES DIRECTORATE                                                                       ,Staff Payment,BA0000296677,27.90,
BIS,The Insolvency Service,13/06/2016,Travel and Subsistence,FINANCE AND COMMERCIAL                                                                              ,Staff Payment,BA0000296677,30.00,
BIS,The Insolvency Service,13/06/2016,Travel and Subsistence,OFFICIAL RECEIVER SERVICES                                                                          ,Staff Payment,BA0000296677,4.90,
BIS,The Insolvency Service,13/06/2016,Travel and Subsistence,OFFICIAL RECEIVER SERVICES                                                                          ,Staff Payment,BA0000296677,5.00,
BIS,The Insolvency Service,13/06/2016,Travel and Subsistence,OFFICIAL RECEIVER SERVICES                                                                          ,Staff Payment,BA0000296677,5.00,
BIS,The Insolvency Service,13/06/2016,Travel and Subsistence,OFFICIAL RECEIVER SERVICES                                                                          ,Staff Payment,BA0000296677,7.60,
BIS,The Insolvency Service,13/06/2016,Travel and Subsistence,OFFICIAL RECEIVER SERVICES                                                                          ,Staff Payment,BA0000296677,5.00,
BIS,The Insolvency Service,13/06/2016,Travel and Subsistence,OFFICIAL RECEIVER SERVICES                                                                          ,Staff Payment,BA0000296677,4.70,
BIS,The Insolvency Service,13/06/2016,Travel and Subsistence,OFFICIAL RECEIVER SERVICES                                                                          ,Staff Payment,BA0000296677,7.14,
BIS,The Insolvency Service,13/06/2016,Travel and Subsistence,OFFICIAL RECEIVER SERVICES                                                                          ,Staff Payment,BA0000296677,4.15,
BIS,The Insolvency Service,13/06/2016,Travel and Subsistence,OFFICIAL RECEIVER SERVICES                                                                          ,Staff Payment,BA0000296677,5.00,
BIS,The Insolvency Service,13/06/2016,Travel and Subsistence,PEOPLE & CAPABILITY                                                                                 ,Staff Payment,BA0000296677,28.70,
BIS,The Insolvency Service,13/06/2016,Travel and Subsistence,PEOPLE & CAPABILITY                                                                                 ,Staff Payment,BA0000296677,25.00,
BIS,The Insolvency Service,15/06/2016,Travel and Subsistence,OFFICIAL RECEIVER SERVICES                                                                          ,Staff Payment,BA0000296778,95.40,
BIS,The Insolvency Service,15/06/2016,Travel and Subsistence,OFFICIAL RECEIVER SERVICES                                                                          ,Staff Payment,BA0000296778,12.20,
BIS,The Insolvency Service,15/06/2016,Travel and Subsistence,OFFICIAL RECEIVER SERVICES                                                                          ,Staff Payment,BA0000296778,80.50,
BIS,The Insolvency Service,15/06/2016,Travel and Subsistence,INVESTIGATIONS & ENFORCEMENT                                                                        ,Staff Payment,BA0000296778,49.50,
BIS,The Insolvency Service,15/06/2016,Travel and Subsistence,INVESTIGATIONS & ENFORCEMENT                                                                        ,Staff Payment,BA0000296778,334.80,
BIS,The Insolvency Service,15/06/2016,Travel and Subsistence,OFFICIAL RECEIVER SERVICES                                                                          ,Staff Payment,BA0000296778,2.00,
BIS,The Insolvency Service,15/06/2016,Travel and Subsistence,OFFICIAL RECEIVER SERVICES                                                                          ,Staff Payment,BA0000296778,40.95,
BIS,The Insolvency Service,15/06/2016,Travel and Subsistence,OFFICIAL RECEIVER SERVICES                                                                          ,Staff Payment,BA0000296778,18.90,
BIS,The Insolvency Service,15/06/2016,Travel and Subsistence,OFFICIAL RECEIVER SERVICES                                                                          ,Staff Payment,BA0000296778,28.00,
BIS,The Insolvency Service,15/06/2016,Travel and Subsistence,OFFICIAL RECEIVER SERVICES                                                                          ,Staff Payment,BA0000296778,63.30,
BIS,The Insolvency Service,15/06/2016,Travel and Subsistence,INVESTIGATIONS & ENFORCEMENT                                                                        ,Staff Payment,BA0000296778,15.00,
BIS,The Insolvency Service,15/06/2016,Travel and Subsistence,OFFICIAL RECEIVER SERVICES                                                                          ,Staff Payment,BA0000296778,11.00,
BIS,The Insolvency Service,15/06/2016,Travel and Subsistence,INVESTIGATIONS & ENFORCEMENT                                                                        ,Staff Payment,BA0000296778,10.85,
BIS,The Insolvency Service,15/06/2016,Travel and Subsistence,INVESTIGATIONS & ENFORCEMENT                                                                        ,Staff Payment,BA0000296778,27.33,
BIS,The Insolvency Service,15/06/2016,Travel and Subsistence,OFFICIAL RECEIVER SERVICES                                                                          ,Staff Payment,BA0000296778,5.00,
BIS,The Insolvency Service,15/06/2016,Travel and Subsistence,OFFICIAL RECEIVER SERVICES                                                                          ,Staff Payment,BA0000296778,39.19,
BIS,The Insolvency Service,15/06/2016,Travel and Subsistence,OFFICIAL RECEIVER SERVICES                                                                          ,Staff Payment,BA0000296778,4.00,
BIS,The Insolvency Service,15/06/2016,Travel and Subsistence,OFFICIAL RECEIVER SERVICES                                                                          ,Staff Payment,BA0000296778,5.00,
BIS,The Insolvency Service,16/06/2016,Travel and Subsistence,INVESTIGATIONS & ENFORCEMENT                                                                        ,Staff Payment,BA0000296808,65.00,
BIS,The Insolvency Service,16/06/2016,Travel and Subsistence,PEOPLE & CAPABILITY                                                                                 ,Staff Payment,BA0000296808,62.00,
BIS,The Insolvency Service,16/06/2016,Travel and Subsistence,INVESTIGATIONS & ENFORCEMENT                                                                        ,Staff Payment,BA0000296808,2.30,
BIS,The Insolvency Service,16/06/2016,Travel and Subsistence,OFFICIAL RECEIVER SERVICES                                                                          ,Staff Payment,BA0000296808,9.80,
BIS,The Insolvency Service,16/06/2016,Travel and Subsistence,OFFICIAL RECEIVER SERVICES                                                                          ,Staff Payment,BA0000296808,10.00,
BIS,The Insolvency Service,16/06/2016,Travel and Subsistence,PEOPLE & CAPABILITY                                                                                 ,Staff Payment,BA0000296808,13.70,
BIS,The Insolvency Service,16/06/2016,Travel and Subsistence,INVESTIGATIONS & ENFORCEMENT                                                                        ,Staff Payment,BA0000296808,11.00,
BIS,The Insolvency Service,16/06/2016,Travel and Subsistence,OFFICIAL RECEIVER SERVICES                                                                          ,Staff Payment,BA0000296808,5.00,
BIS,The Insolvency Service,16/06/2016,Travel and Subsistence,OFFICIAL RECEIVER SERVICES                                                                          ,Staff Payment,BA0000296808,5.00,
BIS,The Insolvency Service,16/06/2016,Travel and Subsistence,OFFICIAL RECEIVER SERVICES                                                                          ,Staff Payment,BA0000296808,4.00,
BIS,The Insolvency Service,16/06/2016,Travel and Subsistence,OFFICIAL RECEIVER SERVICES                                                                          ,Staff Payment,BA0000296808,245.25,
BIS,The Insolvency Service,16/06/2016,Travel and Subsistence,OFFICIAL RECEIVER SERVICES                                                                          ,Staff Payment,BA0000296808,2.70,
BIS,The Insolvency Service,16/06/2016,Travel and Subsistence,OFFICIAL RECEIVER SERVICES                                                                          ,Staff Payment,BA0000296808,5.40,
BIS,The Insolvency Service,16/06/2016,Travel and Subsistence,OFFICIAL RECEIVER SERVICES                                                                          ,Staff Payment,BA0000296808,3.00,
BIS,The Insolvency Service,16/06/2016,Travel and Subsistence,OFFICIAL RECEIVER SERVICES                                                                          ,Staff Payment,BA0000296808,48.00,
BIS,The Insolvency Service,16/06/2016,Travel and Subsistence,PEOPLE & CAPABILITY                                                                                 ,Staff Payment,BA0000296808,23.40,
BIS,The Insolvency Service,16/06/2016,Travel and Subsistence,PEOPLE & CAPABILITY                                                                                 ,Staff Payment,BA0000296808,78.45,
BIS,The Insolvency Service,16/06/2016,Travel and Subsistence,PROJECTS                                                                                            ,Staff Payment,BA0000296808,24.99,
BIS,The Insolvency Service,16/06/2016,Travel and Subsistence,INVESTIGATIONS & ENFORCEMENT                                                                        ,Staff Payment,BA0000296808,24.23,
BIS,The Insolvency Service,16/06/2016,Travel and Subsistence,INVESTIGATIONS & ENFORCEMENT                                                                        ,Staff Payment,BA0000296808,4.70,
BIS,The Insolvency Service,16/06/2016,Travel and Subsistence,OFFICIAL RECEIVER SERVICES                                                                          ,Staff Payment,BA0000296808,5.00,
BIS,The Insolvency Service,16/06/2016,Travel and Subsistence,OFFICIAL RECEIVER SERVICES                                                                          ,Staff Payment,BA0000296808,4.48,
BIS,The Insolvency Service,16/06/2016,Travel and Subsistence,PEOPLE & CAPABILITY                                                                                 ,Staff Payment,BA0000296808,77.79,
BIS,The Insolvency Service,16/06/2016,Travel and Subsistence,PEOPLE & CAPABILITY                                                                                 ,Staff Payment,BA0000296808,39.05,
BIS,The Insolvency Service,16/06/2016,Insolvency Case Related Costs,INVESTIGATIONS & ENFORCEMENT                                                                        ,Staff Payment,BA0000296808,7.00,
BIS,The Insolvency Service,17/06/2016,Travel and Subsistence,OFFICIAL RECEIVER SERVICES                                                                          ,Staff Payment,BA0000296831,12.40,
BIS,The Insolvency Service,17/06/2016,Travel and Subsistence,FINANCE AND COMMERCIAL,Staff Payment,BA0000296831,9.00,
BIS,The Insolvency Service,17/06/2016,Travel and Subsistence,OFFICIAL RECEIVER SERVICES                                                                          ,Staff Payment,BA0000296831,2.40,
BIS,The Insolvency Service,17/06/2016,Travel and Subsistence,OFFICIAL RECEIVER SERVICES                                                                          ,Staff Payment,BA0000296831,36.90,
BIS,The Insolvency Service,17/06/2016,Travel and Subsistence,PEOPLE & CAPABILITY                                                                                 ,Staff Payment,BA0000296831,18.00,
BIS,The Insolvency Service,17/06/2016,Travel and Subsistence,PEOPLE & CAPABILITY                                                                                 ,Staff Payment,BA0000296831,18.00,
BIS,The Insolvency Service,17/06/2016,Travel and Subsistence,PEOPLE & CAPABILITY                                                                                 ,Staff Payment,BA0000296831,18.00,
BIS,The Insolvency Service,17/06/2016,Travel and Subsistence,PEOPLE & CAPABILITY                                                                                 ,Staff Payment,BA0000296831,18.00,
BIS,The Insolvency Service,17/06/2016,Travel and Subsistence,FINANCE AND COMMERCIAL,Staff Payment,BA0000296831,5.00,
BIS,The Insolvency Service,21/06/2016,Travel and Subsistence,FINANCE AND COMMERCIAL                                                                              ,Staff Payment,BA0000296844,52.50,
BIS,The Insolvency Service,21/06/2016,Travel and Subsistence,FINANCE AND COMMERCIAL                                                                              ,Staff Payment,BA0000296844,200.70,
BIS,The Insolvency Service,21/06/2016,Travel and Subsistence,FINANCE AND COMMERCIAL,Staff Payment,BA0000296844,26.10,
BIS,The Insolvency Service,21/06/2016,Travel and Subsistence,OFFICIAL RECEIVER SERVICES                                                                          ,Staff Payment,BA0000296844,47.70,
BIS,The Insolvency Service,21/06/2016,Travel and Subsistence,FINANCE AND COMMERCIAL                                                                              ,Staff Payment,BA0000296844,5.99,
BIS,The Insolvency Service,21/06/2016,Travel and Subsistence,FINANCE AND COMMERCIAL,Staff Payment,BA0000296844,10.00,
BIS,The Insolvency Service,21/06/2016,Travel and Subsistence,INVESTIGATIONS & ENFORCEMENT                                                                        ,Staff Payment,BA0000296844,76.28,
BIS,The Insolvency Service,21/06/2016,Travel and Subsistence,INVESTIGATIONS & ENFORCEMENT                                                                        ,Staff Payment,BA0000296844,73.00,
BIS,The Insolvency Service,21/06/2016,Travel and Subsistence,INFORMATION TECHNOLOGY                                                                              ,Staff Payment,BA0000296844,104.00,
BIS,The Insolvency Service,21/06/2016,Travel and Subsistence,INVESTIGATIONS & ENFORCEMENT                                                                        ,Staff Payment,BA0000296844,4.10,
BIS,The Insolvency Service,21/06/2016,Travel and Subsistence,INVESTIGATIONS & ENFORCEMENT                                                                        ,Staff Payment,BA0000296844,10.80,
BIS,The Insolvency Service,21/06/2016,Travel and Subsistence,INVESTIGATIONS & ENFORCEMENT                                                                        ,Staff Payment,BA0000296844,7.50,
BIS,The Insolvency Service,21/06/2016,Travel and Subsistence,INVESTIGATIONS & ENFORCEMENT                                                                        ,Staff Payment,BA0000296844,2.40,
BIS,The Insolvency Service,21/06/2016,Travel and Subsistence,INVESTIGATIONS & ENFORCEMENT                                                                        ,Staff Payment,BA0000296844,18.80,
BIS,The Insolvency Service,21/06/2016,Travel and Subsistence,OFFICIAL RECEIVER SERVICES                                                                          ,Staff Payment,BA0000296844,9.80,
BIS,The Insolvency Service,21/06/2016,Travel and Subsistence,OFFICIAL RECEIVER SERVICES                                                                          ,Staff Payment,BA0000296844,12.40,
BIS,The Insolvency Service,21/06/2016,Travel and Subsistence,OFFICIAL RECEIVER SERVICES                                                                          ,Staff Payment,BA0000296844,9.80,
BIS,The Insolvency Service,21/06/2016,Travel and Subsistence,PEOPLE & CAPABILITY                                                                                 ,Staff Payment,BA0000296844,9.20,
BIS,The Insolvency Service,21/06/2016,Travel and Subsistence,BUSINESS SERVICES DIRECTORATE                                                                       ,Staff Payment,BA0000296844,5.50,
BIS,The Insolvency Service,21/06/2016,Travel and Subsistence,BUSINESS SERVICES DIRECTORATE                                                                       ,Staff Payment,BA0000296844,360.05,
BIS,The Insolvency Service,21/06/2016,Travel and Subsistence,BUSINESS SERVICES DIRECTORATE                                                                       ,Staff Payment,BA0000296844,19.35,
BIS,The Insolvency Service,21/06/2016,Travel and Subsistence,BUSINESS SERVICES DIRECTORATE                                                                       ,Staff Payment,BA0000296844,3.34,
BIS,The Insolvency Service,21/06/2016,Travel and Subsistence,BUSINESS SERVICES DIRECTORATE                                                                       ,Staff Payment,BA0000296844,93.00,
BIS,The Insolvency Service,21/06/2016,Travel and Subsistence,BUSINESS SERVICES DIRECTORATE                                                                       ,Staff Payment,BA0000296844,9.00,
BIS,The Insolvency Service,21/06/2016,Travel and Subsistence,FINANCE AND COMMERCIAL,Staff Payment,BA0000296844,9.00,
BIS,The Insolvency Service,21/06/2016,Travel and Subsistence,INVESTIGATIONS & ENFORCEMENT                                                                        ,Staff Payment,BA0000296844,8.50,
BIS,The Insolvency Service,21/06/2016,Travel and Subsistence,INVESTIGATIONS & ENFORCEMENT                                                                        ,Staff Payment,BA0000296844,11.25,
BIS,The Insolvency Service,21/06/2016,Travel and Subsistence,INVESTIGATIONS & ENFORCEMENT                                                                        ,Staff Payment,BA0000296844,8.50,
BIS,The Insolvency Service,21/06/2016,Travel and Subsistence,INVESTIGATIONS & ENFORCEMENT                                                                        ,Staff Payment,BA0000296844,11.25,
BIS,The Insolvency Service,21/06/2016,Travel and Subsistence,INVESTIGATIONS & ENFORCEMENT                                                                        ,Staff Payment,BA0000296844,17.60,
BIS,The Insolvency Service,21/06/2016,Travel and Subsistence,INVESTIGATIONS & ENFORCEMENT                                                                        ,Staff Payment,BA0000296844,52.00,
BIS,The Insolvency Service,21/06/2016,Travel and Subsistence,INVESTIGATIONS & ENFORCEMENT                                                                        ,Staff Payment,BA0000296844,9.00,
BIS,The Insolvency Service,21/06/2016,Travel and Subsistence,INVESTIGATIONS & ENFORCEMENT                                                                        ,Staff Payment,BA0000296844,9.00,
BIS,The Insolvency Service,21/06/2016,Travel and Subsistence,INVESTIGATIONS & ENFORCEMENT                                                                        ,Staff Payment,BA0000296844,9.00,
BIS,The Insolvency Service,21/06/2016,Travel and Subsistence,INVESTIGATIONS & ENFORCEMENT                                                                        ,Staff Payment,BA0000296844,1.80,
BIS,The Insolvency Service,21/06/2016,Travel and Subsistence,INVESTIGATIONS & ENFORCEMENT                                                                        ,Staff Payment,BA0000296844,30.60,
BIS,The Insolvency Service,21/06/2016,Travel and Subsistence,INVESTIGATIONS & ENFORCEMENT                                                                        ,Staff Payment,BA0000296844,17.00,
BIS,The Insolvency Service,21/06/2016,Travel and Subsistence,INVESTIGATIONS & ENFORCEMENT                                                                        ,Staff Payment,BA0000296844,42.30,
BIS,The Insolvency Service,21/06/2016,Travel and Subsistence,INVESTIGATIONS & ENFORCEMENT                                                                        ,Staff Payment,BA0000296844,17.10,
BIS,The Insolvency Service,21/06/2016,Travel and Subsistence,OFFICIAL RECEIVER SERVICES                                                                          ,Staff Payment,BA0000296844,2.60,
BIS,The Insolvency Service,21/06/2016,Travel and Subsistence,OFFICIAL RECEIVER SERVICES                                                                          ,Staff Payment,BA0000296844,12.60,
BIS,The Insolvency Service,21/06/2016,Travel and Subsistence,OFFICIAL RECEIVER SERVICES                                                                          ,Staff Payment,BA0000296844,1.00,
BIS,The Insolvency Service,21/06/2016,Travel and Subsistence,OFFICIAL RECEIVER SERVICES                                                                          ,Staff Payment,BA0000296844,1.80,
BIS,The Insolvency Service,21/06/2016,Travel and Subsistence,OFFICIAL RECEIVER SERVICES                                                                          ,Staff Payment,BA0000296844,7.50,
BIS,The Insolvency Service,21/06/2016,Travel and Subsistence,OFFICIAL RECEIVER SERVICES                                                                          ,Staff Payment,BA0000296844,12.00,
BIS,The Insolvency Service,21/06/2016,Travel and Subsistence,OFFICIAL RECEIVER SERVICES                                                                          ,Staff Payment,BA0000296844,52.20,
BIS,The Insolvency Service,21/06/2016,Travel and Subsistence,OFFICIAL RECEIVER SERVICES                                                                          ,Staff Payment,BA0000296844,2.50,
BIS,The Insolvency Service,21/06/2016,Travel and Subsistence,OFFICIAL RECEIVER SERVICES                                                                          ,Staff Payment,BA0000296844,2.40,
BIS,The Insolvency Service,21/06/2016,Travel and Subsistence,OFFICIAL RECEIVER SERVICES                                                                          ,Staff Payment,BA0000296844,36.90,
BIS,The Insolvency Service,21/06/2016,Travel and Subsistence,OFFICIAL RECEIVER SERVICES                                                                          ,Staff Payment,BA0000296844,15.00,
BIS,The Insolvency Service,21/06/2016,Travel and Subsistence,OFFICIAL RECEIVER SERVICES                                                                          ,Staff Payment,BA0000296844,113.65,
BIS,The Insolvency Service,21/06/2016,Travel and Subsistence,OFFICIAL RECEIVER SERVICES                                                                          ,Staff Payment,BA0000296844,52.00,
BIS,The Insolvency Service,21/06/2016,Travel and Subsistence,OFFICIAL RECEIVER SERVICES                                                                          ,Staff Payment,BA0000296844,7.65,
BIS,The Insolvency Service,21/06/2016,Travel and Subsistence,OFFICIAL RECEIVER SERVICES                                                                          ,Staff Payment,BA0000296844,9.00,
BIS,The Insolvency Service,21/06/2016,Travel and Subsistence,OFFICIAL RECEIVER SERVICES                                                                          ,Staff Payment,BA0000296844,7.60,
BIS,The Insolvency Service,21/06/2016,Travel and Subsistence,OFFICIAL RECEIVER SERVICES                                                                          ,Staff Payment,BA0000296844,5.00,
BIS,The Insolvency Service,21/06/2016,Travel and Subsistence,OFFICIAL RECEIVER SERVICES                                                                          ,Staff Payment,BA0000296844,20.70,
BIS,The Insolvency Service,21/06/2016,Travel and Subsistence,OFFICIAL RECEIVER SERVICES                                                                          ,Staff Payment,BA0000296844,2.00,
BIS,The Insolvency Service,21/06/2016,Travel and Subsistence,OFFICIAL RECEIVER SERVICES                                                                          ,Staff Payment,BA0000296844,12.60,
BIS,The Insolvency Service,21/06/2016,Travel and Subsistence,PEOPLE & CAPABILITY                                                                                 ,Staff Payment,BA0000296844,18.00,
BIS,The Insolvency Service,21/06/2016,Travel and Subsistence,PEOPLE & CAPABILITY                                                                                 ,Staff Payment,BA0000296844,18.00,
BIS,The Insolvency Service,21/06/2016,Travel and Subsistence,PEOPLE & CAPABILITY                                                                                 ,Staff Payment,BA0000296844,18.00,
BIS,The Insolvency Service,21/06/2016,Travel and Subsistence,PEOPLE & CAPABILITY                                                                                 ,Staff Payment,BA0000296844,18.00,
BIS,The Insolvency Service,21/06/2016,Travel and Subsistence,PEOPLE & CAPABILITY                                                                                 ,Staff Payment,BA0000296844,78.45,
BIS,The Insolvency Service,21/06/2016,Travel and Subsistence,PROJECTS                                                                                            ,Staff Payment,BA0000296844,3.00,
BIS,The Insolvency Service,21/06/2016,Travel and Subsistence,INVESTIGATIONS & ENFORCEMENT                                                                        ,Staff Payment,BA0000296844,11.00,
BIS,The Insolvency Service,21/06/2016,Travel and Subsistence,OFFICIAL RECEIVER SERVICES                                                                          ,Staff Payment,BA0000296844,5.00,
